Department Family,Entity,Date,Expense type,Expense area,Supplier,Transaction number,Amount
BEIS,ACAS,28/11/2022,SOFTWARE & LICENCES,DDAT,ATOS IT SERVICES UK LIMITED,POIN931,2125.44
BEIS,ACAS,28/11/2022,SOFTWARE & LICENCES,DDAT,ATOS IT SERVICES UK LIMITED,POIN931,11282.01
BEIS,ACAS,28/11/2022,SOFTWARE & LICENCES,DDAT,ATOS IT SERVICES UK LIMITED,POIN931,2406
BEIS,ACAS,28/11/2022,TELEPHONES,DDAT,ATOS IT SERVICES UK LIMITED,POIN931,41.98
BEIS,ACAS,28/11/2022,TELEPHONES,DDAT,ATOS IT SERVICES UK LIMITED,POIN931,64.98
BEIS,ACAS,28/11/2022,PROFESSIONAL FEES,DDAT,ATOS IT SERVICES UK LIMITED,POIN932,4930.79
BEIS,ACAS,29/11/2022,EXTERNAL LEARNING,ODHR,SOUTHVIEW SALES LTD,POIN933,5700
BEIS,ACAS,25/11/2022,EVALUATION OF OPS ACTIVITIES,STRATEGY,I F F RESEARCH,POIN934,18000
BEIS,ACAS,28/11/2022,OTHER PAYROLL COSTS,FEP,MHR INTERNATIONAL UK LTD,POIN935,19097.64
BEIS,ACAS,28/11/2022,OTHER PAYROLL COSTS,FEP,MHR INTERNATIONAL UK LTD,POIN935,72.96
BEIS,ACAS,24/11/2022,OCCUPATIONAL HEALTH SERVICE,FEP,FLEXIFORM BUSINESS FURNITURE LTD,POIN936,898.8
BEIS,ACAS,29/11/2022,OCCUPATIONAL HEALTH SERVICE,FEP,FLEXIFORM BUSINESS FURNITURE LTD,POIN937,552.6
BEIS,ACAS,28/11/2022,OCCUPATIONAL HEALTH SERVICE,FEP,FLEXIFORM BUSINESS FURNITURE LTD,POIN938,964.27
BEIS,ACAS,28/11/2022,OCCUPATIONAL HEALTH SERVICE,FEP,FLEXIFORM BUSINESS FURNITURE LTD,POIN939,732
BEIS,ACAS,28/11/2022,OCCUPATIONAL HEALTH SERVICE,FEP,FLEXIFORM BUSINESS FURNITURE LTD,POIN940,761.4
BEIS,ACAS,30/11/2022,AGENCY STAFF,ODHR,ALEXANDER MANN SOLUTIONS LTD,POIN942,4003.44
BEIS,ACAS,30/11/2022,MANAGED SERVICE Off-PAYROLL WK,DELIVERY,AXIS 12 LIMITED,POIN943,47475
BEIS,ACAS,30/11/2022,MANAGED SERVICE Off-PAYROLL WK,DELIVERY,AXIS 12 LIMITED,POIN944,104625
BEIS,ACAS,22/11/2022,OCCUPATIONAL HEALTH SERVICE,FEP,ONLINE ERGONOMICS,POIN945,908.57
BEIS,ACAS,14/11/2022,OCCUPATIONAL HEALTH SERVICE,FEP,FLEXIFORM BUSINESS FURNITURE LTD,POIN946,805.04
BEIS,ACAS,07/12/2022,EXTERNAL LEARNING,ODHR,TRACY MOUNTAIN CONSULTANCY LIMITED,POIN947,650
BEIS,ACAS,07/12/2022,TRAINERS & GUEST SPEAKERS,ODHR,THRIVE4LIFE LTD,POIN948,1080
BEIS,ACAS,01/12/2022,PROFESSIONAL FEES,DDAT,SIRIUS OPEN SOURCE LIMITED,POIN949,1792.61
BEIS,ACAS,30/11/2022,PROFESSIONAL FEES,DDAT,VERSION 1 SOLUTIONS LTD,POIN950,6490
BEIS,ACAS,03/12/2022,HARDWARE ADDITIONS,DDAT,XMA COMPUTER PRODUCTS LTD,POIN951,573.48
BEIS,ACAS,08/12/2022,AGENCY STAFF,ODHR,ALEXANDER MANN SOLUTIONS LTD,POIN954,4003.44
BEIS,ACAS,30/11/2022,MANAGED SERVICE Off-PAYROLL WK,DELIVERY,THE PUBLIC SERVICE CONSULTANTS LIMITED,POIN955,95428.8
BEIS,ACAS,08/12/2022,LEARNING RESOURCE MATERIALS,ODHR,ALEXANDER MANN SOLUTIONS LTD,POIN956,12000
BEIS,ACAS,08/12/2022,LEARNING RESOURCE MATERIALS,ODHR,ALEXANDER MANN SOLUTIONS LTD,POIN956,5326.58
BEIS,ACAS,08/12/2022,PROFESSIONAL FEES,FEP,UK SHARED BUSINESS SERVICES LTD,POIN957,1300
BEIS,ACAS,09/12/2022,EXTERNAL LEARNING - CSL,ODHR,KPMG LLP,POIN958,1794.6
BEIS,ACAS,09/12/2022,EXTERNAL LEARNING - CSL,ODHR,KPMG LLP,POIN958,1794.6
BEIS,ACAS,08/12/2022,AGENCY STAFF,DELIVERY,ALEXANDER MANN SOLUTIONS LTD,POIN959,3541.62
BEIS,ACAS,08/12/2022,AGENCY STAFF,DELIVERY,ALEXANDER MANN SOLUTIONS LTD,POIN960,3920.03
BEIS,ACAS,30/11/2022,AGENCY STAFF,DELIVERY,ALEXANDER MANN SOLUTIONS LTD,POIN961,3541.62
BEIS,ACAS,30/11/2022,AGENCY STAFF,DELIVERY,ALEXANDER MANN SOLUTIONS LTD,POIN962,3408.72
BEIS,ACAS,30/11/2022,AGENCY STAFF,DELIVERY,ALEXANDER MANN SOLUTIONS LTD,POIN962,2897.41
BEIS,ACAS,30/11/2022,CONTRACTOR OFF-PAYROLL IN IR35,DELIVERY,ALEXANDER MANN SOLUTIONS LTD,POIN963,1704.36
BEIS,ACAS,30/11/2022,CONTRACTOR OFF-PAYROLL IN IR35,DELIVERY,ALEXANDER MANN SOLUTIONS LTD,POIN963,681.74
BEIS,ACAS,08/12/2022,OCCUPATIONAL HEALTH SERVICE,FEP,FLEXIFORM BUSINESS FURNITURE LTD,POIN964,1059.6
BEIS,ACAS,08/12/2022,OCCUPATIONAL HEALTH SERVICE,FEP,FLEXIFORM BUSINESS FURNITURE LTD,POIN965,552.6
BEIS,ACAS,13/12/2022,CONTRACTOR OFF-PAYROLL IN IR35,ODHR,MICHAEL PAGE,POIN966,2441.7
BEIS,ACAS,13/12/2022,CONTRACTOR OFF-PAYROLL IN IR35,ODHR,MICHAEL PAGE,POIN966,4069.5
BEIS,ACAS,30/11/2022,PROFESSIONAL FEES,CAC,INVESTORS IN PEOPLE,POIN968,2803.8
BEIS,ACAS,02/12/2022,HARDWARE ADDITIONS,DDAT,XMA COMPUTER PRODUCTS LTD,POIN969,286.74
BEIS,ACAS,02/12/2022,HARDWARE ADDITIONS,DDAT,XMA COMPUTER PRODUCTS LTD,POIN970,286.74
BEIS,ACAS,13/12/2022,OTHER RESEARCH,STRATEGY,UNIVERSITY OF SOUTHAMPTON,POIN971,2000
BEIS,ACAS,13/12/2022,CONTRACTOR OFF-PAYROLL IN IR35,ODHR,MICHAEL PAGE,POIN972,8064
BEIS,ACAS,02/12/2022,HARDWARE ADDITIONS,DDAT,XMA COMPUTER PRODUCTS LTD,POIN973,257.88
BEIS,ACAS,02/12/2022,HARDWARE ADDITIONS,DDAT,XMA COMPUTER PRODUCTS LTD,POIN974,257.88
BEIS,ACAS,07/12/2022,HARDWARE ADDITIONS,DDAT,XMA COMPUTER PRODUCTS LTD,POIN975,270.29
BEIS,ACAS,09/12/2022,HARDWARE ADDITIONS,DDAT,XMA COMPUTER PRODUCTS LTD,POIN976,297.6
BEIS,ACAS,13/12/2022,HARDWARE ADDITIONS,DDAT,XMA COMPUTER PRODUCTS LTD,POIN978,270.29
BEIS,ACAS,08/12/2022,HARDWARE ADDITIONS,DDAT,XMA COMPUTER PRODUCTS LTD,POIN979,150
BEIS,ACAS,08/12/2022,HARDWARE ADDITIONS,DDAT,XMA COMPUTER PRODUCTS LTD,POIN979,150
BEIS,ACAS,15/12/2022,LEARNING RESOURCE MATERIALS,ODHR,ALEXANDER MANN SOLUTIONS LTD,POIN980,1484.78
BEIS,ACAS,15/12/2022,AGENCY STAFF,ODHR,ALEXANDER MANN SOLUTIONS LTD,POIN981,4003.44
BEIS,ACAS,30/11/2022,PROFESSIONAL FEES,DELIVERY,LANGUAGE EMPIRE LTD,POIN982,285.84
BEIS,ACAS,19/12/2022,CONTRACTOR OFF-PAYROLL IN IR35,DELIVERY,ALEXANDER MANN SOLUTIONS LTD,POIN983,216
BEIS,ACAS,19/12/2022,CONTRACTOR OFF-PAYROLL IN IR35,DELIVERY,ALEXANDER MANN SOLUTIONS LTD,POIN983,1363.49
BEIS,ACAS,19/12/2022,CONTRACTOR OFF-PAYROLL IN IR35,DELIVERY,ALEXANDER MANN SOLUTIONS LTD,POIN983,-216
BEIS,ACAS,19/12/2022,CONTRACTOR OFF-PAYROLL IN IR35,DELIVERY,ALEXANDER MANN SOLUTIONS LTD,POIN983,-1363.49
BEIS,ACAS,19/12/2022,OCCUPATIONAL HEALTH SERVICE,FEP,POSTURITE LTD,POIN984,1088.64
BEIS,ACAS,30/11/2022,PROFESSIONAL FEES,DELIVERY,LANGUAGE EMPIRE LTD,POIN985,628.27
BEIS,ACAS,30/11/2022,PROFESSIONAL FEES,DELIVERY,LANGUAGE EMPIRE LTD,POIN985,628.26
BEIS,ACAS,30/11/2022,PROFESSIONAL FEES,DELIVERY,LANGUAGE EMPIRE LTD,POIN985,1745.57
BEIS,ACAS,30/11/2022,PROFESSIONAL FEES,DELIVERY,LANGUAGE EMPIRE LTD,POIN985,1745.57
BEIS,ACAS,19/12/2022,EXTERNAL LEARNING,ODHR,BRIGHTON AND HOVE LGBT SWITCHBOARD,POIN986,450
BEIS,ACAS,30/11/2022,SOFTWARE & LICENCES,DDAT,PHOENIX SOFTWARE LTD,POIN987,2509.92
BEIS,ACAS,30/11/2022,SOFTWARE & LICENCES,DDAT,PHOENIX SOFTWARE LTD,POIN987,278.82
BEIS,ACAS,09/12/2022,PROFESSIONAL FEES,DDAT,RESTORE TECHNOLOGY,POIN988,148.2
BEIS,ACAS,09/12/2022,PROFESSIONAL FEES,DDAT,RESTORE TECHNOLOGY,POIN988,374.4
BEIS,ACAS,09/12/2022,PROFESSIONAL FEES,DDAT,RESTORE TECHNOLOGY,POIN988,7.8
BEIS,ACAS,09/12/2022,PROFESSIONAL FEES,DDAT,RESTORE TECHNOLOGY,POIN988,6
BEIS,ACAS,09/12/2022,COURIERS,DDAT,RESTORE TECHNOLOGY,POIN988,660
BEIS,ACAS,09/12/2022,PROFESSIONAL FEES,DDAT,RESTORE TECHNOLOGY,POIN989,109.2
BEIS,ACAS,09/12/2022,PROFESSIONAL FEES,DDAT,RESTORE TECHNOLOGY,POIN989,12
BEIS,ACAS,09/12/2022,PROFESSIONAL FEES,DDAT,RESTORE TECHNOLOGY,POIN989,7.8
BEIS,ACAS,09/12/2022,PROFESSIONAL FEES,DDAT,RESTORE TECHNOLOGY,POIN989,6
BEIS,ACAS,09/12/2022,COURIERS,DDAT,RESTORE TECHNOLOGY,POIN989,942
BEIS,ACAS,09/12/2022,PROFESSIONAL FEES,DDAT,RESTORE TECHNOLOGY,POIN990,996
BEIS,ACAS,30/11/2022,PROFESSIONAL FEES,DDAT,TISSKI LTD,POIN991,2280
BEIS,ACAS,09/12/2022,PROFESSIONAL FEES,DDAT,BIG BLUE DOOR,POIN992,900
BEIS,ACAS,15/12/2022,CONTRACTOR OFF-PAYROLL IN IR35,DDAT,ALEXANDER MANN SOLUTIONS LTD,POIN993,4772.22
BEIS,ACAS,08/12/2022,CONTRACTOR OFF-PAYROLL IN IR35,DDAT,ALEXANDER MANN SOLUTIONS LTD,POIN994,4772.22
BEIS,ACAS,15/12/2022,PROFESSIONAL FEES,DDAT,ATOS IT SERVICES UK LIMITED,POIN995,4930.79
BEIS,ACAS,15/12/2022,SOFTWARE & LICENCES,DDAT,ATOS IT SERVICES UK LIMITED,POIN996,2329.13
BEIS,ACAS,15/12/2022,SOFTWARE & LICENCES,DDAT,ATOS IT SERVICES UK LIMITED,POIN996,11100.05
BEIS,ACAS,15/12/2022,SOFTWARE & LICENCES,DDAT,ATOS IT SERVICES UK LIMITED,POIN996,2406
BEIS,ACAS,15/12/2022,TELEPHONES,DDAT,ATOS IT SERVICES UK LIMITED,POIN996,41.98
BEIS,ACAS,15/12/2022,TELEPHONES,DDAT,ATOS IT SERVICES UK LIMITED,POIN996,17.37
BEIS,ACAS,16/12/2022,HARDWARE ADDITIONS,DDAT,XMA COMPUTER PRODUCTS LTD,POIN997,515.76
BEIS,ACAS,18/11/2022,EXTERNAL LEARNING,ODHR,SHINE WORKPLACE WELLBEING LTD,POIN998,825
BEIS,ACAS,30/11/2022,PROFESSIONAL FEES,DDAT,VERSION 1 SOLUTIONS LTD,POIN999,7534.5
BEIS,ACAS,30/11/2022,PROFESSIONAL FEES,DDAT,VERSION 1 SOLUTIONS LTD,POIN1000,11179.21
BEIS,ACAS,19/12/2022,OCCUPATIONAL HEALTH SERVICE,FEP,FLEXIFORM BUSINESS FURNITURE LTD,POIN1001,552.6
BEIS,ACAS,19/12/2022,OCCUPATIONAL HEALTH SERVICE,FEP,FLEXIFORM BUSINESS FURNITURE LTD,POIN1002,552.6
BEIS,ACAS,19/12/2022,OCCUPATIONAL HEALTH SERVICE,FEP,FLEXIFORM BUSINESS FURNITURE LTD,POIN1003,578.4
BEIS,ACAS,19/12/2022,EXTERNAL LEARNING - CSL,ODHR,KPMG LLP,POIN1004,390
BEIS,ACAS,22/11/2022,HARDWARE ADDITIONS,DDAT,SPECIALIST COMPUTER CENTRES,POIN1005,115305.44
BEIS,ACAS,22/11/2022,COMPUTER HARDWARE,DDAT,SPECIALIST COMPUTER CENTRES,POIN1005,522
BEIS,ACAS,07/12/2022,HARDWARE ADDITIONS,DDAT,XMA COMPUTER PRODUCTS LTD,POIN1006,882
BEIS,ACAS,20/12/2022,PROFESSIONAL FEES,DELIVERY,DOODLEDO MOTION LIMITED,POIN1007,17994
BEIS,ACAS,21/12/2022,TEAM MEETINGS,SOUTH&LONDON,WEST SUFFOLK COUNCIL,POIN1008,300
BEIS,ACAS,20/12/2022,EVALUATION OF OPS ACTIVITIES,DELIVERY,I F F RESEARCH,POIN1009,57237.44
BEIS,ACAS,20/12/2022,EVALUATION OF OPS ACTIVITIES,DELIVERY,I F F RESEARCH,POIN1009,57525.12
BEIS,ACAS,21/12/2022,AGENCY STAFF,ODHR,ALEXANDER MANN SOLUTIONS LTD,POIN1010,4003.44
BEIS,ACAS,16/12/2022,HARDWARE ADDITIONS,DDAT,SPECIALIST COMPUTER CENTRES,POIN1011,62635.06
BEIS,ACAS,16/12/2022,SYSTEM/EQUIPMENT MAINTENANCE,DDAT,SPECIALIST COMPUTER CENTRES,POIN1011,5414.84
BEIS,ACAS,16/12/2022,SYSTEM/EQUIPMENT MAINTENANCE,DDAT,SPECIALIST COMPUTER CENTRES,POIN1011,601.66
BEIS,ACAS,22/12/2022,PROFESSIONAL FEES,DDAT,TISSKI LTD,POIN1012,6400
BEIS,ACAS,22/12/2022,EXTERNAL LEARNING,ODHR,CONTENT DESIGN LONDON LTD,POIN1013,1020
BEIS,ACAS,05/12/2022,EXTERNAL LEARNING,ODHR,THE KNOWLEDGE ACADEMY LIMITED,POIN1014,1182.6
BEIS,ACAS,18/12/2022,GOVT SOLICITORS FEES,CO,GOVERNMENT LEGAL DEPARTMENT,POIN1015,798.72
BEIS,ACAS,22/12/2022,EXTERNAL LEARNING,ODHR,HEMSLEY FRASER GROUP LTD,POIN1016,660
BEIS,ACAS,19/12/2022,PROFESSIONAL FEES,FEP,GOVERNMENT PROPERTY AGENCY,POIN1017,360
BEIS,ACAS,15/12/2022,CONTRACTOR OFF-PAYROLL IN IR35,DELIVERY,ALEXANDER MANN SOLUTIONS LTD,POIN1018,2045.23
BEIS,ACAS,15/12/2022,AGENCY STAFF,DELIVERY,ALEXANDER MANN SOLUTIONS LTD,POIN1019,3408.72
BEIS,ACAS,21/12/2022,AGENCY STAFF,DELIVERY,ALEXANDER MANN SOLUTIONS LTD,POIN1020,2833.3
BEIS,ACAS,21/12/2022,AGENCY STAFF,DELIVERY,ALEXANDER MANN SOLUTIONS LTD,POIN1020,1416.64
BEIS,ACAS,30/11/2022,MANAGED SERVICE Off-PAYROLL WK,DELIVERY,TISSKI LTD,POIN1021,35775
BEIS,ACAS,30/11/2022,MANAGED SERVICE Off-PAYROLL WK,DELIVERY,TISSKI LTD,POIN1021,1800
BEIS,ACAS,30/11/2022,MANAGED SERVICE Off-PAYROLL WK,DELIVERY,TISSKI LTD,POIN1021,2250
BEIS,ACAS,19/12/2022,COMPUTER HARDWARE,DDAT,MILLGATE LIMITED,POIN1022,1856.4
BEIS,ACAS,22/12/2022,HARDWARE ADDITIONS,DDAT,MILLGATE LIMITED,POIN1023,9672
BEIS,ACAS,21/12/2022,CONTRACTOR OFF-PAYROLL IN IR35,DDAT,ALEXANDER MANN SOLUTIONS LTD,POIN1024,4772.22
BEIS,ACAS,12/12/2022,PROFESSIONAL FEES,DDAT,ACS SYSTEMS UK LTD,POIN1025,4080
BEIS,ACAS,12/12/2022,COMPUTER HARDWARE,DDAT,ACS SYSTEMS UK LTD,POIN1025,1657.19
BEIS,ACAS,12/12/2022,SYSTEM/EQUIPMENT MAINTENANCE,DDAT,ACS SYSTEMS UK LTD,POIN1025,1509.01
BEIS,ACAS,12/12/2022,SOFTWARE & LICENCES,DDAT,ACS SYSTEMS UK LTD,POIN1025,315.54
BEIS,ACAS,23/12/2022,SOFTWARE & LICENCES,DDAT,PHOENIX SOFTWARE LTD,POIN1026,1875.06
BEIS,ACAS,23/12/2022,SOFTWARE & LICENCES,DDAT,PHOENIX SOFTWARE LTD,POIN1026,208.56
BEIS,ACAS,14/11/2022,MANAGED SERVICE Off-PAYROLL WK,DELIVERY,AXIS 12 LIMITED,POIN1027,9900
BEIS,ACAS,14/11/2022,MANAGED SERVICE Off-PAYROLL WK,DELIVERY,AXIS 12 LIMITED,POIN1028,9561.3
BEIS,ACAS,18/12/2022,STAFF RECRUITMENT COSTS,DELIVERY,CAROL MARTYN LTD,POIN1029,738.74
BEIS,ACAS,29/12/2022,AGENCY STAFF,DELIVERY,ALEXANDER MANN SOLUTIONS LTD,POIN1030,3408.72
BEIS,ACAS,29/12/2022,AGENCY STAFF,DELIVERY,ALEXANDER MANN SOLUTIONS LTD,POIN1031,2124.97
BEIS,ACAS,29/12/2022,AGENCY STAFF,ODHR,ALEXANDER MANN SOLUTIONS LTD,POIN1032,4003.44
BEIS,ACAS,30/11/2022,MANAGED SERVICE Off-PAYROLL WK,DELIVERY,OPENCAST SOFTWARE EUROPE LTD,POIN1033,46286.26
BEIS,ACAS,30/11/2022,MANAGED SERVICE Off-PAYROLL WK,DELIVERY,OPENCAST SOFTWARE EUROPE LTD,POIN1033,58729.74
BEIS,ACAS,30/11/2022,MANAGED SERVICE Off-PAYROLL WK,DELIVERY,OPENCAST SOFTWARE EUROPE LTD,POIN1033,15144
BEIS,ACAS,30/11/2022,MANAGED SERVICE Off-PAYROLL WK,DELIVERY,OPENCAST SOFTWARE EUROPE LTD,POIN1033,12985.76
BEIS,ACAS,09/11/2022,EXTERNAL LEARNING - CSL,ODHR,KPMG LLP,PINV1210,2103.6
BEIS,ACAS,29/11/2022,PHOTOCOPIERS,DDAT,Canon (UK) Ltd,PINV1212,1041.96
BEIS,ACAS,29/11/2022,PHOTOCOPIERS,DDAT,Canon (UK) Ltd,PINV1212,115.78
BEIS,ACAS,19/10/2022,REFUNDS,NORTH&MID,MCLANACHAN TRANSPORT LIMITED,PINV1215,270
BEIS,ACAS,23/11/2022,PUBLICITY,STRATEGY,HH GLOBAL,PINV1216,10652.63
BEIS,ACAS,25/11/2022,PUBLICITY,SCOTLAND,SCOTTISH COUNCIL FOR VOLUNTARY ORGS,PINV1217,360
BEIS,ACAS,30/11/2022,REFUNDS,SOUTH&LONDON,SOUTHERN CO-OPERATIVES LIMITED,PINV1218,255
BEIS,ACAS,30/11/2022,AGENCY STAFF,NORTH&MID,ALEXANDER MANN SOLUTIONS LTD,PINV1219,638.03
BEIS,ACAS,01/12/2022,TRAINERS & GUEST SPEAKERS,SOUTH&LONDON,MUSIC FOOTBALL FATHERHOOD,PINV1220,1200
BEIS,ACAS,30/11/2022,OCCUPATIONAL HEALTH SERVICE,ODHR,TP HEALTH LTD,PINV1221,778.8
BEIS,ACAS,01/12/2022,VENUE HIRE (REC VAT),FEP,CLOCKWISE SAVOY LIMITED,PINV1224,1152
BEIS,ACAS,01/12/2022,VENUE HIRE (REC VAT),FEP,CLOCKWISE SAVOY LIMITED,PINV1225,5448
BEIS,ACAS,30/11/2022,AGENCY STAFF,WALES&MID,ALEXANDER MANN SOLUTIONS LTD,PINV1226,310.39
BEIS,ACAS,01/12/2022,TELEPHONES,DDAT,GTT,PINV1227,1610.66
BEIS,ACAS,01/12/2022,TELEPHONES,DDAT,GTT,PINV1227,178.97
BEIS,ACAS,30/11/2022,PROFESSIONAL FEES,WALES&MID,CYMEN CYF,PINV1228,1453.91
BEIS,ACAS,01/12/2022,TELEPHONES,DDAT,GTT,PINV1230,31670.89
BEIS,ACAS,01/12/2022,TELEPHONES,DDAT,GTT,PINV1230,3518.99
BEIS,ACAS,07/12/2022,PUBLICITY,WALES&MID,MIGHTY SIGNS LTD,PINV1231,552
BEIS,ACAS,07/12/2022,REFUNDS,NORTH&MID,SILGAN CLOSURES UK LTD,PINV1232,5649
BEIS,ACAS,30/11/2022,HOTEL EXPENSES,DELIVERY,CORPORATE TRAVEL MANAGEMENTLIMITED,PINV1233,159
BEIS,ACAS,30/11/2022,HOTEL EXPENSES,NORTH&MID,CORPORATE TRAVEL MANAGEMENTLIMITED,PINV1233,107
BEIS,ACAS,30/11/2022,HOTEL EXPENSES,WALES&MID,CORPORATE TRAVEL MANAGEMENTLIMITED,PINV1233,110
BEIS,ACAS,30/11/2022,HOTEL EXPENSES,NORTH&MID,CORPORATE TRAVEL MANAGEMENTLIMITED,PINV1233,107
BEIS,ACAS,30/11/2022,HOTEL EXPENSES,WALES&MID,CORPORATE TRAVEL MANAGEMENTLIMITED,PINV1233,66.67
BEIS,ACAS,30/11/2022,HOTEL EXPENSES,NORTH&MID,CORPORATE TRAVEL MANAGEMENTLIMITED,PINV1233,108.33
BEIS,ACAS,30/11/2022,HOTEL EXPENSES,NORTH&MID,CORPORATE TRAVEL MANAGEMENTLIMITED,PINV1233,181.7
BEIS,ACAS,30/11/2022,HOTEL EXPENSES,WALES&MID,CORPORATE TRAVEL MANAGEMENTLIMITED,PINV1233,80
BEIS,ACAS,30/11/2022,HOTEL EXPENSES,DELIVERY,CORPORATE TRAVEL MANAGEMENTLIMITED,PINV1233,75
BEIS,ACAS,30/11/2022,PUBLIC TRANSPORT & PARKING,DELIVERY,CORPORATE TRAVEL MANAGEMENTLIMITED,PINV1233,100.5
BEIS,ACAS,30/11/2022,PUBLIC TRANSPORT & PARKING,DELIVERY,CORPORATE TRAVEL MANAGEMENTLIMITED,PINV1233,100.5
BEIS,ACAS,30/11/2022,PUBLIC TRANSPORT & PARKING,STRATEGY,CORPORATE TRAVEL MANAGEMENTLIMITED,PINV1233,53.1
BEIS,ACAS,30/11/2022,PUBLIC TRANSPORT & PARKING,DELIVERY,CORPORATE TRAVEL MANAGEMENTLIMITED,PINV1233,65.8
BEIS,ACAS,30/11/2022,PUBLIC TRANSPORT & PARKING,DELIVERY,CORPORATE TRAVEL MANAGEMENTLIMITED,PINV1233,366
BEIS,ACAS,30/11/2022,PUBLIC TRANSPORT & PARKING,SPPC,CORPORATE TRAVEL MANAGEMENTLIMITED,PINV1233,71
BEIS,ACAS,30/11/2022,PUBLIC TRANSPORT & PARKING,ODHR,CORPORATE TRAVEL MANAGEMENTLIMITED,PINV1233,314.6
BEIS,ACAS,30/11/2022,PUBLIC TRANSPORT & PARKING,SOUTH&LONDON,CORPORATE TRAVEL MANAGEMENTLIMITED,PINV1233,133.2
BEIS,ACAS,30/11/2022,PUBLIC TRANSPORT & PARKING,DELIVERY,CORPORATE TRAVEL MANAGEMENTLIMITED,PINV1233,57.1
BEIS,ACAS,30/11/2022,PUBLIC TRANSPORT & PARKING,SOUTH&LONDON,CORPORATE TRAVEL MANAGEMENTLIMITED,PINV1233,64.3
BEIS,ACAS,30/11/2022,PUBLIC TRANSPORT & PARKING,DELIVERY,CORPORATE TRAVEL MANAGEMENTLIMITED,PINV1233,342.6
BEIS,ACAS,30/11/2022,PUBLIC TRANSPORT & PARKING,SPPC,CORPORATE TRAVEL MANAGEMENTLIMITED,PINV1233,96.5
BEIS,ACAS,30/11/2022,PUBLIC TRANSPORT & PARKING,DELIVERY,CORPORATE TRAVEL MANAGEMENTLIMITED,PINV1233,90.1
BEIS,ACAS,30/11/2022,PUBLIC TRANSPORT & PARKING,NORTH&MID,CORPORATE TRAVEL MANAGEMENTLIMITED,PINV1233,13.4
BEIS,ACAS,30/11/2022,PUBLIC TRANSPORT & PARKING,DDAT,CORPORATE TRAVEL MANAGEMENTLIMITED,PINV1233,119.6
BEIS,ACAS,30/11/2022,PUBLIC TRANSPORT & PARKING,DELIVERY,CORPORATE TRAVEL MANAGEMENTLIMITED,PINV1233,57.1
BEIS,ACAS,30/11/2022,PUBLIC TRANSPORT & PARKING,DELIVERY,CORPORATE TRAVEL MANAGEMENTLIMITED,PINV1233,154.1
BEIS,ACAS,30/11/2022,PUBLIC TRANSPORT & PARKING,SPPC,CORPORATE TRAVEL MANAGEMENTLIMITED,PINV1233,98.1
BEIS,ACAS,30/11/2022,PUBLIC TRANSPORT & PARKING,DELIVERY,CORPORATE TRAVEL MANAGEMENTLIMITED,PINV1233,231.1
BEIS,ACAS,30/11/2022,PUBLIC TRANSPORT & PARKING,DELIVERY,CORPORATE TRAVEL MANAGEMENTLIMITED,PINV1233,231.1
BEIS,ACAS,30/11/2022,PUBLIC TRANSPORT & PARKING,ODHR,CORPORATE TRAVEL MANAGEMENTLIMITED,PINV1233,270.8
BEIS,ACAS,30/11/2022,HOTEL EXPENSES,DELIVERY,CORPORATE TRAVEL MANAGEMENTLIMITED,PINV1233,149
BEIS,ACAS,30/11/2022,PUBLIC TRANSPORT & PARKING,DDAT,CORPORATE TRAVEL MANAGEMENTLIMITED,PINV1233,42.5
BEIS,ACAS,30/11/2022,PUBLIC TRANSPORT & PARKING,SPPC,CORPORATE TRAVEL MANAGEMENTLIMITED,PINV1233,94
BEIS,ACAS,30/11/2022,PUBLIC TRANSPORT & PARKING,SPPC,CORPORATE TRAVEL MANAGEMENTLIMITED,PINV1233,60.2
BEIS,ACAS,30/11/2022,PUBLIC TRANSPORT & PARKING,SPPC,CORPORATE TRAVEL MANAGEMENTLIMITED,PINV1233,42
BEIS,ACAS,30/11/2022,PUBLIC TRANSPORT & PARKING,FEP,CORPORATE TRAVEL MANAGEMENTLIMITED,PINV1233,88.1
BEIS,ACAS,30/11/2022,PUBLIC TRANSPORT & PARKING,SPPC,CORPORATE TRAVEL MANAGEMENTLIMITED,PINV1233,279.2
BEIS,ACAS,30/11/2022,PUBLIC TRANSPORT & PARKING,SOUTH&LONDON,CORPORATE TRAVEL MANAGEMENTLIMITED,PINV1233,94.2
BEIS,ACAS,30/11/2022,PUBLIC TRANSPORT & PARKING,SPPC,CORPORATE TRAVEL MANAGEMENTLIMITED,PINV1233,98.1
BEIS,ACAS,30/11/2022,PUBLIC TRANSPORT & PARKING,DELIVERY,CORPORATE TRAVEL MANAGEMENTLIMITED,PINV1233,41.9
BEIS,ACAS,30/11/2022,PUBLIC TRANSPORT & PARKING,WALES&MID,CORPORATE TRAVEL MANAGEMENTLIMITED,PINV1233,25.9
BEIS,ACAS,30/11/2022,PUBLIC TRANSPORT & PARKING,DELIVERY,CORPORATE TRAVEL MANAGEMENTLIMITED,PINV1233,228.9
BEIS,ACAS,30/11/2022,PUBLIC TRANSPORT & PARKING,SCOTLAND,CORPORATE TRAVEL MANAGEMENTLIMITED,PINV1233,17.9
BEIS,ACAS,30/11/2022,PUBLIC TRANSPORT & PARKING,SOUTH&LONDON,CORPORATE TRAVEL MANAGEMENTLIMITED,PINV1233,203
BEIS,ACAS,30/11/2022,PUBLIC TRANSPORT & PARKING,ODHR,CORPORATE TRAVEL MANAGEMENTLIMITED,PINV1233,27.9
BEIS,ACAS,30/11/2022,PUBLIC TRANSPORT & PARKING,DELIVERY,CORPORATE TRAVEL MANAGEMENTLIMITED,PINV1233,57.1
BEIS,ACAS,30/11/2022,HOTEL EXPENSES,DELIVERY,CORPORATE TRAVEL MANAGEMENTLIMITED,PINV1233,187.5
BEIS,ACAS,30/11/2022,HOTEL EXPENSES,SPPC,CORPORATE TRAVEL MANAGEMENTLIMITED,PINV1233,209.95
BEIS,ACAS,30/11/2022,HOTEL EXPENSES,NORTH&MID,CORPORATE TRAVEL MANAGEMENTLIMITED,PINV1233,86.67
BEIS,ACAS,30/11/2022,PUBLIC TRANSPORT & PARKING,DELIVERY,CORPORATE TRAVEL MANAGEMENTLIMITED,PINV1233,117.1
BEIS,ACAS,30/11/2022,PUBLIC TRANSPORT & PARKING,SOUTH&LONDON,CORPORATE TRAVEL MANAGEMENTLIMITED,PINV1233,30.1
BEIS,ACAS,30/11/2022,PUBLIC TRANSPORT & PARKING,ODHR,CORPORATE TRAVEL MANAGEMENTLIMITED,PINV1233,225.9
BEIS,ACAS,30/11/2022,PUBLIC TRANSPORT & PARKING,SPPC,CORPORATE TRAVEL MANAGEMENTLIMITED,PINV1233,141.9
BEIS,ACAS,30/11/2022,PUBLIC TRANSPORT & PARKING,SOUTH&LONDON,CORPORATE TRAVEL MANAGEMENTLIMITED,PINV1233,95.3
BEIS,ACAS,30/11/2022,HOTEL EXPENSES,NORTH&MID,CORPORATE TRAVEL MANAGEMENTLIMITED,PINV1233,90
BEIS,ACAS,30/11/2022,PUBLIC TRANSPORT & PARKING,SPPC,CORPORATE TRAVEL MANAGEMENTLIMITED,PINV1233,84.2
BEIS,ACAS,30/11/2022,PUBLIC TRANSPORT & PARKING,WALES&MID,CORPORATE TRAVEL MANAGEMENTLIMITED,PINV1233,110.5
BEIS,ACAS,30/11/2022,PUBLIC TRANSPORT & PARKING,SOUTH&LONDON,CORPORATE TRAVEL MANAGEMENTLIMITED,PINV1233,54.5
BEIS,ACAS,30/11/2022,PUBLIC TRANSPORT & PARKING,SOUTH&LONDON,CORPORATE TRAVEL MANAGEMENTLIMITED,PINV1233,54.5
BEIS,ACAS,30/11/2022,PUBLIC TRANSPORT & PARKING,NORTH&MID,CORPORATE TRAVEL MANAGEMENTLIMITED,PINV1233,30.8
BEIS,ACAS,30/11/2022,PUBLIC TRANSPORT & PARKING,DELIVERY,CORPORATE TRAVEL MANAGEMENTLIMITED,PINV1233,161.3
BEIS,ACAS,30/11/2022,PUBLIC TRANSPORT & PARKING,STRATEGY,CORPORATE TRAVEL MANAGEMENTLIMITED,PINV1233,143.8
BEIS,ACAS,30/11/2022,PUBLIC TRANSPORT & PARKING,DELIVERY,CORPORATE TRAVEL MANAGEMENTLIMITED,PINV1233,207.3
BEIS,ACAS,30/11/2022,PUBLIC TRANSPORT & PARKING,DELIVERY,CORPORATE TRAVEL MANAGEMENTLIMITED,PINV1233,2.5
BEIS,ACAS,30/11/2022,PUBLIC TRANSPORT & PARKING,DELIVERY,CORPORATE TRAVEL MANAGEMENTLIMITED,PINV1233,76
BEIS,ACAS,30/11/2022,PUBLIC TRANSPORT & PARKING,STRATEGY,CORPORATE TRAVEL MANAGEMENTLIMITED,PINV1233,34.6
BEIS,ACAS,30/11/2022,HOTEL EXPENSES,SPPC,CORPORATE TRAVEL MANAGEMENTLIMITED,PINV1233,205
BEIS,ACAS,30/11/2022,HOTEL EXPENSES,SOUTH&LONDON,CORPORATE TRAVEL MANAGEMENTLIMITED,PINV1233,212
BEIS,ACAS,30/11/2022,PUBLIC TRANSPORT & PARKING,STRATEGY,CORPORATE TRAVEL MANAGEMENTLIMITED,PINV1233,96.9
BEIS,ACAS,30/11/2022,PUBLIC TRANSPORT & PARKING,DELIVERY,CORPORATE TRAVEL MANAGEMENTLIMITED,PINV1233,143.6
BEIS,ACAS,30/11/2022,PUBLIC TRANSPORT & PARKING,SPPC,CORPORATE TRAVEL MANAGEMENTLIMITED,PINV1233,189.15
BEIS,ACAS,30/11/2022,PUBLIC TRANSPORT & PARKING,SOUTH&LONDON,CORPORATE TRAVEL MANAGEMENTLIMITED,PINV1233,96.1
BEIS,ACAS,30/11/2022,PUBLIC TRANSPORT & PARKING,SOUTH&LONDON,CORPORATE TRAVEL MANAGEMENTLIMITED,PINV1233,73.2
BEIS,ACAS,30/11/2022,PUBLIC TRANSPORT & PARKING,DELIVERY,CORPORATE TRAVEL MANAGEMENTLIMITED,PINV1233,55
BEIS,ACAS,30/11/2022,PUBLIC TRANSPORT & PARKING,SOUTH&LONDON,CORPORATE TRAVEL MANAGEMENTLIMITED,PINV1233,340.4
BEIS,ACAS,30/11/2022,PUBLIC TRANSPORT & PARKING,SOUTH&LONDON,CORPORATE TRAVEL MANAGEMENTLIMITED,PINV1233,357.9
BEIS,ACAS,30/11/2022,PUBLIC TRANSPORT & PARKING,SOUTH&LONDON,CORPORATE TRAVEL MANAGEMENTLIMITED,PINV1233,203
BEIS,ACAS,30/11/2022,PUBLIC TRANSPORT & PARKING,DELIVERY,CORPORATE TRAVEL MANAGEMENTLIMITED,PINV1233,122.9
BEIS,ACAS,30/11/2022,PUBLIC TRANSPORT & PARKING,SOUTH&LONDON,CORPORATE TRAVEL MANAGEMENTLIMITED,PINV1233,375.4
BEIS,ACAS,30/11/2022,PUBLIC TRANSPORT & PARKING,SOUTH&LONDON,CORPORATE TRAVEL MANAGEMENTLIMITED,PINV1233,357.9
BEIS,ACAS,30/11/2022,PUBLIC TRANSPORT & PARKING,SPPC,CORPORATE TRAVEL MANAGEMENTLIMITED,PINV1233,211.4
BEIS,ACAS,30/11/2022,PUBLIC TRANSPORT & PARKING,NORTH&MID,CORPORATE TRAVEL MANAGEMENTLIMITED,PINV1233,46.2
BEIS,ACAS,30/11/2022,PUBLIC TRANSPORT & PARKING,SPPC,CORPORATE TRAVEL MANAGEMENTLIMITED,PINV1233,70
BEIS,ACAS,30/11/2022,PUBLIC TRANSPORT & PARKING,NORTH&MID,CORPORATE TRAVEL MANAGEMENTLIMITED,PINV1233,46.2
BEIS,ACAS,30/11/2022,PUBLIC TRANSPORT & PARKING,NORTH&MID,CORPORATE TRAVEL MANAGEMENTLIMITED,PINV1233,46.2
BEIS,ACAS,30/11/2022,PUBLIC TRANSPORT & PARKING,NORTH&MID,CORPORATE TRAVEL MANAGEMENTLIMITED,PINV1233,-15
BEIS,ACAS,30/11/2022,PUBLIC TRANSPORT & PARKING,NORTH&MID,CORPORATE TRAVEL MANAGEMENTLIMITED,PINV1233,163.2
BEIS,ACAS,30/11/2022,HOTEL EXPENSES,DELIVERY,CORPORATE TRAVEL MANAGEMENTLIMITED,PINV1233,274.55
BEIS,ACAS,30/11/2022,HOTEL EXPENSES,NORTH&MID,CORPORATE TRAVEL MANAGEMENTLIMITED,PINV1233,150.42
BEIS,ACAS,30/11/2022,HOTEL EXPENSES,DELIVERY,CORPORATE TRAVEL MANAGEMENTLIMITED,PINV1233,85.5
BEIS,ACAS,30/11/2022,HOTEL EXPENSES,SOUTH&LONDON,CORPORATE TRAVEL MANAGEMENTLIMITED,PINV1233,159.92
BEIS,ACAS,30/11/2022,HOTEL EXPENSES,DELIVERY,CORPORATE TRAVEL MANAGEMENTLIMITED,PINV1233,165
BEIS,ACAS,30/11/2022,HOTEL EXPENSES,WALES&MID,CORPORATE TRAVEL MANAGEMENTLIMITED,PINV1233,100
BEIS,ACAS,30/11/2022,HOTEL EXPENSES,DELIVERY,CORPORATE TRAVEL MANAGEMENTLIMITED,PINV1233,267
BEIS,ACAS,30/11/2022,HOTEL EXPENSES,DELIVERY,CORPORATE TRAVEL MANAGEMENTLIMITED,PINV1233,202
BEIS,ACAS,30/11/2022,PUBLIC TRANSPORT & PARKING,DELIVERY,CORPORATE TRAVEL MANAGEMENTLIMITED,PINV1233,200
BEIS,ACAS,30/11/2022,PUBLIC TRANSPORT & PARKING,ODHR,CORPORATE TRAVEL MANAGEMENTLIMITED,PINV1233,78.2
BEIS,ACAS,30/11/2022,PUBLIC TRANSPORT & PARKING,DELIVERY,CORPORATE TRAVEL MANAGEMENTLIMITED,PINV1233,100
BEIS,ACAS,30/11/2022,HOTEL EXPENSES,DELIVERY,CORPORATE TRAVEL MANAGEMENTLIMITED,PINV1233,95
BEIS,ACAS,30/11/2022,HOTEL EXPENSES,DELIVERY,CORPORATE TRAVEL MANAGEMENTLIMITED,PINV1233,97.85
BEIS,ACAS,30/11/2022,HOTEL EXPENSES,WALES&MID,CORPORATE TRAVEL MANAGEMENTLIMITED,PINV1233,165
BEIS,ACAS,30/11/2022,HOTEL EXPENSES,SPPC,CORPORATE TRAVEL MANAGEMENTLIMITED,PINV1233,105.45
BEIS,ACAS,30/11/2022,HOTEL EXPENSES,SPPC,CORPORATE TRAVEL MANAGEMENTLIMITED,PINV1233,95
BEIS,ACAS,30/11/2022,HOTEL EXPENSES,STRATEGY,CORPORATE TRAVEL MANAGEMENTLIMITED,PINV1233,186.2
BEIS,ACAS,30/11/2022,HOTEL EXPENSES,DELIVERY,CORPORATE TRAVEL MANAGEMENTLIMITED,PINV1233,91
BEIS,ACAS,30/11/2022,PUBLIC TRANSPORT & PARKING,STRATEGY,CORPORATE TRAVEL MANAGEMENTLIMITED,PINV1233,37
BEIS,ACAS,30/11/2022,PUBLIC TRANSPORT & PARKING,ODHR,CORPORATE TRAVEL MANAGEMENTLIMITED,PINV1233,171
BEIS,ACAS,30/11/2022,PUBLIC TRANSPORT & PARKING,ODHR,CORPORATE TRAVEL MANAGEMENTLIMITED,PINV1233,161.1
BEIS,ACAS,30/11/2022,PUBLIC TRANSPORT & PARKING,SPPC,CORPORATE TRAVEL MANAGEMENTLIMITED,PINV1233,259
BEIS,ACAS,30/11/2022,PUBLIC TRANSPORT & PARKING,SPPC,CORPORATE TRAVEL MANAGEMENTLIMITED,PINV1233,259
BEIS,ACAS,30/11/2022,PUBLIC TRANSPORT & PARKING,ODHR,CORPORATE TRAVEL MANAGEMENTLIMITED,PINV1233,138.6
BEIS,ACAS,30/11/2022,PUBLIC TRANSPORT & PARKING,NORTH&MID,CORPORATE TRAVEL MANAGEMENTLIMITED,PINV1233,40.1
BEIS,ACAS,30/11/2022,PUBLIC TRANSPORT & PARKING,NORTH&MID,CORPORATE TRAVEL MANAGEMENTLIMITED,PINV1233,68.3
BEIS,ACAS,30/11/2022,PUBLIC TRANSPORT & PARKING,ODHR,CORPORATE TRAVEL MANAGEMENTLIMITED,PINV1233,295.4
BEIS,ACAS,30/11/2022,PUBLIC TRANSPORT & PARKING,NORTH&MID,CORPORATE TRAVEL MANAGEMENTLIMITED,PINV1233,71.6
BEIS,ACAS,30/11/2022,HOTEL EXPENSES,NORTH&MID,CORPORATE TRAVEL MANAGEMENTLIMITED,PINV1233,41.83
BEIS,ACAS,30/11/2022,PUBLIC TRANSPORT & PARKING,SPPC,CORPORATE TRAVEL MANAGEMENTLIMITED,PINV1233,259
BEIS,ACAS,30/11/2022,HOTEL EXPENSES,SPPC,CORPORATE TRAVEL MANAGEMENTLIMITED,PINV1233,140
BEIS,ACAS,30/11/2022,PUBLIC TRANSPORT & PARKING,DELIVERY,CORPORATE TRAVEL MANAGEMENTLIMITED,PINV1233,2.5
BEIS,ACAS,30/11/2022,PUBLIC TRANSPORT & PARKING,SPPC,CORPORATE TRAVEL MANAGEMENTLIMITED,PINV1233,135
BEIS,ACAS,30/11/2022,PUBLIC TRANSPORT & PARKING,STRATEGY,CORPORATE TRAVEL MANAGEMENTLIMITED,PINV1233,206.5
BEIS,ACAS,30/11/2022,PUBLIC TRANSPORT & PARKING,STRATEGY,CORPORATE TRAVEL MANAGEMENTLIMITED,PINV1233,126.4
BEIS,ACAS,30/11/2022,HOTEL EXPENSES,SPPC,CORPORATE TRAVEL MANAGEMENTLIMITED,PINV1233,140
BEIS,ACAS,30/11/2022,HOTEL EXPENSES,SCOTLAND,CORPORATE TRAVEL MANAGEMENTLIMITED,PINV1233,79.17
BEIS,ACAS,30/11/2022,PUBLIC TRANSPORT & PARKING,DELIVERY,CORPORATE TRAVEL MANAGEMENTLIMITED,PINV1233,203.8
BEIS,ACAS,30/11/2022,PUBLIC TRANSPORT & PARKING,NORTH&MID,CORPORATE TRAVEL MANAGEMENTLIMITED,PINV1233,68
BEIS,ACAS,30/11/2022,PUBLIC TRANSPORT & PARKING,DELIVERY,CORPORATE TRAVEL MANAGEMENTLIMITED,PINV1233,57.1
BEIS,ACAS,30/11/2022,HOTEL EXPENSES,ODHR,CORPORATE TRAVEL MANAGEMENTLIMITED,PINV1233,40.41
BEIS,ACAS,30/11/2022,PUBLIC TRANSPORT & PARKING,SOUTH&LONDON,CORPORATE TRAVEL MANAGEMENTLIMITED,PINV1233,-67.5
BEIS,ACAS,30/11/2022,HOTEL EXPENSES,DELIVERY,CORPORATE TRAVEL MANAGEMENTLIMITED,PINV1233,258
BEIS,ACAS,30/11/2022,HOTEL EXPENSES,DELIVERY,CORPORATE TRAVEL MANAGEMENTLIMITED,PINV1233,368
BEIS,ACAS,30/11/2022,HOTEL EXPENSES,DELIVERY,CORPORATE TRAVEL MANAGEMENTLIMITED,PINV1233,138
BEIS,ACAS,30/11/2022,HOTEL EXPENSES,DELIVERY,CORPORATE TRAVEL MANAGEMENTLIMITED,PINV1233,199
BEIS,ACAS,30/11/2022,HOTEL EXPENSES,ODHR,CORPORATE TRAVEL MANAGEMENTLIMITED,PINV1233,67.1
BEIS,ACAS,30/11/2022,HOTEL EXPENSES,DELIVERY,CORPORATE TRAVEL MANAGEMENTLIMITED,PINV1233,150.35
BEIS,ACAS,30/11/2022,HOTEL EXPENSES,DELIVERY,CORPORATE TRAVEL MANAGEMENTLIMITED,PINV1233,138
BEIS,ACAS,30/11/2022,HOTEL EXPENSES,DELIVERY,CORPORATE TRAVEL MANAGEMENTLIMITED,PINV1233,138
BEIS,ACAS,30/11/2022,HOTEL EXPENSES,DELIVERY,CORPORATE TRAVEL MANAGEMENTLIMITED,PINV1233,297
BEIS,ACAS,30/11/2022,HOTEL EXPENSES,DELIVERY,CORPORATE TRAVEL MANAGEMENTLIMITED,PINV1233,345.8
BEIS,ACAS,30/11/2022,HOTEL EXPENSES,SOUTH&LONDON,CORPORATE TRAVEL MANAGEMENTLIMITED,PINV1233,72.04
BEIS,ACAS,30/11/2022,HOTEL EXPENSES,DELIVERY,CORPORATE TRAVEL MANAGEMENTLIMITED,PINV1233,320
BEIS,ACAS,30/11/2022,HOTEL EXPENSES,DELIVERY,CORPORATE TRAVEL MANAGEMENTLIMITED,PINV1233,320
BEIS,ACAS,30/11/2022,PUBLIC TRANSPORT & PARKING,ODHR,CORPORATE TRAVEL MANAGEMENTLIMITED,PINV1233,270.8
BEIS,ACAS,30/11/2022,PUBLIC TRANSPORT & PARKING,DELIVERY,CORPORATE TRAVEL MANAGEMENTLIMITED,PINV1233,178.3
BEIS,ACAS,30/11/2022,PUBLIC TRANSPORT & PARKING,WALES&MID,CORPORATE TRAVEL MANAGEMENTLIMITED,PINV1233,406.5
BEIS,ACAS,30/11/2022,HOTEL EXPENSES,SOUTH&LONDON,CORPORATE TRAVEL MANAGEMENTLIMITED,PINV1233,243.95
BEIS,ACAS,30/11/2022,PUBLIC TRANSPORT & PARKING,SOUTH&LONDON,CORPORATE TRAVEL MANAGEMENTLIMITED,PINV1233,38.2
BEIS,ACAS,30/11/2022,PUBLIC TRANSPORT & PARKING,ODHR,CORPORATE TRAVEL MANAGEMENTLIMITED,PINV1233,57.6
BEIS,ACAS,30/11/2022,PUBLIC TRANSPORT & PARKING,WALES&MID,CORPORATE TRAVEL MANAGEMENTLIMITED,PINV1233,172.75
BEIS,ACAS,30/11/2022,PUBLIC TRANSPORT & PARKING,WALES&MID,CORPORATE TRAVEL MANAGEMENTLIMITED,PINV1233,173.25
BEIS,ACAS,30/11/2022,PUBLIC TRANSPORT & PARKING,SPPC,CORPORATE TRAVEL MANAGEMENTLIMITED,PINV1233,110
BEIS,ACAS,30/11/2022,PUBLIC TRANSPORT & PARKING,DELIVERY,CORPORATE TRAVEL MANAGEMENTLIMITED,PINV1233,145.3
BEIS,ACAS,30/11/2022,PUBLIC TRANSPORT & PARKING,DELIVERY,CORPORATE TRAVEL MANAGEMENTLIMITED,PINV1233,360.2
BEIS,ACAS,30/11/2022,PUBLIC TRANSPORT & PARKING,ODHR,CORPORATE TRAVEL MANAGEMENTLIMITED,PINV1233,166.9
BEIS,ACAS,30/11/2022,HOTEL EXPENSES,DELIVERY,CORPORATE TRAVEL MANAGEMENTLIMITED,PINV1233,198
BEIS,ACAS,30/11/2022,HOTEL EXPENSES,WALES&MID,CORPORATE TRAVEL MANAGEMENTLIMITED,PINV1233,68.08
BEIS,ACAS,30/11/2022,HOTEL EXPENSES,DELIVERY,CORPORATE TRAVEL MANAGEMENTLIMITED,PINV1233,160
BEIS,ACAS,30/11/2022,HOTEL EXPENSES,DELIVERY,CORPORATE TRAVEL MANAGEMENTLIMITED,PINV1233,106.4
BEIS,ACAS,30/11/2022,HOTEL EXPENSES,DELIVERY,CORPORATE TRAVEL MANAGEMENTLIMITED,PINV1233,198
BEIS,ACAS,30/11/2022,PUBLIC TRANSPORT & PARKING,SPPC,CORPORATE TRAVEL MANAGEMENTLIMITED,PINV1233,71
BEIS,ACAS,30/11/2022,PUBLIC TRANSPORT & PARKING,ODHR,CORPORATE TRAVEL MANAGEMENTLIMITED,PINV1233,174.4
BEIS,ACAS,30/11/2022,PUBLIC TRANSPORT & PARKING,DELIVERY,CORPORATE TRAVEL MANAGEMENTLIMITED,PINV1233,133.2
BEIS,ACAS,30/11/2022,HOTEL EXPENSES,DELIVERY,CORPORATE TRAVEL MANAGEMENTLIMITED,PINV1233,85
BEIS,ACAS,30/11/2022,HOTEL EXPENSES,WALES&MID,CORPORATE TRAVEL MANAGEMENTLIMITED,PINV1233,100
BEIS,ACAS,30/11/2022,HOTEL EXPENSES,DELIVERY,CORPORATE TRAVEL MANAGEMENTLIMITED,PINV1233,198
BEIS,ACAS,30/11/2022,HOTEL EXPENSES,WALES&MID,CORPORATE TRAVEL MANAGEMENTLIMITED,PINV1233,73.33
BEIS,ACAS,30/11/2022,PUBLIC TRANSPORT & PARKING,DELIVERY,CORPORATE TRAVEL MANAGEMENTLIMITED,PINV1233,129.5
BEIS,ACAS,30/11/2022,PUBLIC TRANSPORT & PARKING,NORTH&MID,CORPORATE TRAVEL MANAGEMENTLIMITED,PINV1233,8.8
BEIS,ACAS,30/11/2022,PUBLIC TRANSPORT & PARKING,DELIVERY,CORPORATE TRAVEL MANAGEMENTLIMITED,PINV1233,129.5
BEIS,ACAS,30/11/2022,PUBLIC TRANSPORT & PARKING,DDAT,CORPORATE TRAVEL MANAGEMENTLIMITED,PINV1233,250.4
BEIS,ACAS,30/11/2022,HOTEL EXPENSES,SPPC,CORPORATE TRAVEL MANAGEMENTLIMITED,PINV1233,250.33
BEIS,ACAS,30/11/2022,HOTEL EXPENSES,ODHR,CORPORATE TRAVEL MANAGEMENTLIMITED,PINV1233,62.5
BEIS,ACAS,30/11/2022,HOTEL EXPENSES,SOUTH&LONDON,CORPORATE TRAVEL MANAGEMENTLIMITED,PINV1233,78.37
BEIS,ACAS,30/11/2022,HOTEL EXPENSES,SPPC,CORPORATE TRAVEL MANAGEMENTLIMITED,PINV1233,215
BEIS,ACAS,30/11/2022,HOTEL EXPENSES,ODHR,CORPORATE TRAVEL MANAGEMENTLIMITED,PINV1233,80
BEIS,ACAS,30/11/2022,HOTEL EXPENSES,ODHR,CORPORATE TRAVEL MANAGEMENTLIMITED,PINV1233,82.65
BEIS,ACAS,30/11/2022,HOTEL EXPENSES,NORTH&MID,CORPORATE TRAVEL MANAGEMENTLIMITED,PINV1233,159.13
BEIS,ACAS,30/11/2022,HOTEL EXPENSES,SOUTH&LONDON,CORPORATE TRAVEL MANAGEMENTLIMITED,PINV1233,239.03
BEIS,ACAS,30/11/2022,HOTEL EXPENSES,ODHR,CORPORATE TRAVEL MANAGEMENTLIMITED,PINV1233,82.65
BEIS,ACAS,30/11/2022,PUBLIC TRANSPORT & PARKING,STRATEGY,CORPORATE TRAVEL MANAGEMENTLIMITED,PINV1233,241.8
BEIS,ACAS,30/11/2022,PUBLIC TRANSPORT & PARKING,DELIVERY,CORPORATE TRAVEL MANAGEMENTLIMITED,PINV1233,54.8
BEIS,ACAS,30/11/2022,PUBLIC TRANSPORT & PARKING,DELIVERY,CORPORATE TRAVEL MANAGEMENTLIMITED,PINV1233,109.8
BEIS,ACAS,30/11/2022,PUBLIC TRANSPORT & PARKING,DELIVERY,CORPORATE TRAVEL MANAGEMENTLIMITED,PINV1233,107.5
BEIS,ACAS,30/11/2022,PUBLIC TRANSPORT & PARKING,SPPC,CORPORATE TRAVEL MANAGEMENTLIMITED,PINV1233,255.5
BEIS,ACAS,30/11/2022,PUBLIC TRANSPORT & PARKING,SOUTH&LONDON,CORPORATE TRAVEL MANAGEMENTLIMITED,PINV1233,72.5
BEIS,ACAS,30/11/2022,PUBLIC TRANSPORT & PARKING,SPPC,CORPORATE TRAVEL MANAGEMENTLIMITED,PINV1233,203
BEIS,ACAS,30/11/2022,PUBLIC TRANSPORT & PARKING,ODHR,CORPORATE TRAVEL MANAGEMENTLIMITED,PINV1233,28.7
BEIS,ACAS,30/11/2022,PUBLIC TRANSPORT & PARKING,ODHR,CORPORATE TRAVEL MANAGEMENTLIMITED,PINV1233,75.7
BEIS,ACAS,30/11/2022,PUBLIC TRANSPORT & PARKING,SPPC,CORPORATE TRAVEL MANAGEMENTLIMITED,PINV1233,203
BEIS,ACAS,30/11/2022,PUBLIC TRANSPORT & PARKING,ODHR,CORPORATE TRAVEL MANAGEMENTLIMITED,PINV1233,95
BEIS,ACAS,30/11/2022,PUBLIC TRANSPORT & PARKING,WALES&MID,CORPORATE TRAVEL MANAGEMENTLIMITED,PINV1233,243.4
BEIS,ACAS,30/11/2022,HOTEL EXPENSES,DELIVERY,CORPORATE TRAVEL MANAGEMENTLIMITED,PINV1233,66.67
BEIS,ACAS,30/11/2022,HOTEL EXPENSES,DDAT,CORPORATE TRAVEL MANAGEMENTLIMITED,PINV1233,198
BEIS,ACAS,30/11/2022,PUBLIC TRANSPORT & PARKING,DELIVERY,CORPORATE TRAVEL MANAGEMENTLIMITED,PINV1233,-44.1
BEIS,ACAS,30/11/2022,PUBLIC TRANSPORT & PARKING,STRATEGY,CORPORATE TRAVEL MANAGEMENTLIMITED,PINV1233,245
BEIS,ACAS,30/11/2022,PUBLIC TRANSPORT & PARKING,DELIVERY,CORPORATE TRAVEL MANAGEMENTLIMITED,PINV1233,-138.7
BEIS,ACAS,30/11/2022,PUBLIC TRANSPORT & PARKING,DELIVERY,CORPORATE TRAVEL MANAGEMENTLIMITED,PINV1233,-143.7
BEIS,ACAS,30/11/2022,PUBLIC TRANSPORT & PARKING,SPPC,CORPORATE TRAVEL MANAGEMENTLIMITED,PINV1233,178.7
BEIS,ACAS,30/11/2022,PUBLIC TRANSPORT & PARKING,NORTH&MID,CORPORATE TRAVEL MANAGEMENTLIMITED,PINV1233,33.3
BEIS,ACAS,30/11/2022,PUBLIC TRANSPORT & PARKING,SOUTH&LONDON,CORPORATE TRAVEL MANAGEMENTLIMITED,PINV1233,39.2
BEIS,ACAS,30/11/2022,HOTEL EXPENSES,SPPC,CORPORATE TRAVEL MANAGEMENTLIMITED,PINV1233,140
BEIS,ACAS,30/11/2022,HOTEL EXPENSES,SOUTH&LONDON,CORPORATE TRAVEL MANAGEMENTLIMITED,PINV1233,215.5
BEIS,ACAS,30/11/2022,PUBLIC TRANSPORT & PARKING,SOUTH&LONDON,CORPORATE TRAVEL MANAGEMENTLIMITED,PINV1233,63.4
BEIS,ACAS,30/11/2022,PUBLIC TRANSPORT & PARKING,NORTH&MID,CORPORATE TRAVEL MANAGEMENTLIMITED,PINV1233,22.4
BEIS,ACAS,30/11/2022,PUBLIC TRANSPORT & PARKING,NORTH&MID,CORPORATE TRAVEL MANAGEMENTLIMITED,PINV1233,7.3
BEIS,ACAS,30/11/2022,PUBLIC TRANSPORT & PARKING,DELIVERY,CORPORATE TRAVEL MANAGEMENTLIMITED,PINV1233,77
BEIS,ACAS,30/11/2022,PUBLIC TRANSPORT & PARKING,DELIVERY,CORPORATE TRAVEL MANAGEMENTLIMITED,PINV1233,100.5
BEIS,ACAS,30/11/2022,PUBLIC TRANSPORT & PARKING,ODHR,CORPORATE TRAVEL MANAGEMENTLIMITED,PINV1233,154.4
BEIS,ACAS,30/11/2022,PUBLIC TRANSPORT & PARKING,SOUTH&LONDON,CORPORATE TRAVEL MANAGEMENTLIMITED,PINV1233,131.6
BEIS,ACAS,30/11/2022,PUBLIC TRANSPORT & PARKING,DELIVERY,CORPORATE TRAVEL MANAGEMENTLIMITED,PINV1233,37
BEIS,ACAS,30/11/2022,HOTEL EXPENSES,ODHR,CORPORATE TRAVEL MANAGEMENTLIMITED,PINV1233,80
BEIS,ACAS,30/11/2022,HOTEL EXPENSES,SCOTLAND,CORPORATE TRAVEL MANAGEMENTLIMITED,PINV1233,87.5
BEIS,ACAS,30/11/2022,HOTEL EXPENSES,SOUTH&LONDON,CORPORATE TRAVEL MANAGEMENTLIMITED,PINV1233,83.12
BEIS,ACAS,30/11/2022,HOTEL EXPENSES,SCOTLAND,CORPORATE TRAVEL MANAGEMENTLIMITED,PINV1233,87.5
BEIS,ACAS,30/11/2022,HOTEL EXPENSES,SPPC,CORPORATE TRAVEL MANAGEMENTLIMITED,PINV1233,173
BEIS,ACAS,30/11/2022,PUBLIC TRANSPORT & PARKING,ODHR,CORPORATE TRAVEL MANAGEMENTLIMITED,PINV1233,270.8
BEIS,ACAS,30/11/2022,PUBLIC TRANSPORT & PARKING,DELIVERY,CORPORATE TRAVEL MANAGEMENTLIMITED,PINV1233,-52.1
BEIS,ACAS,30/11/2022,PUBLIC TRANSPORT & PARKING,DELIVERY,CORPORATE TRAVEL MANAGEMENTLIMITED,PINV1233,36.5
BEIS,ACAS,30/11/2022,HOTEL EXPENSES,DELIVERY,CORPORATE TRAVEL MANAGEMENTLIMITED,PINV1233,165
BEIS,ACAS,30/11/2022,PUBLIC TRANSPORT & PARKING,STRATEGY,CORPORATE TRAVEL MANAGEMENTLIMITED,PINV1233,163.1
BEIS,ACAS,30/11/2022,PUBLIC TRANSPORT & PARKING,FEP,CORPORATE TRAVEL MANAGEMENTLIMITED,PINV1233,74
BEIS,ACAS,30/11/2022,PUBLIC TRANSPORT & PARKING,CO,CORPORATE TRAVEL MANAGEMENTLIMITED,PINV1233,19.7
BEIS,ACAS,30/11/2022,PUBLIC TRANSPORT & PARKING,DELIVERY,CORPORATE TRAVEL MANAGEMENTLIMITED,PINV1233,55
BEIS,ACAS,30/11/2022,PUBLIC TRANSPORT & PARKING,DELIVERY,CORPORATE TRAVEL MANAGEMENTLIMITED,PINV1233,100.5
BEIS,ACAS,30/11/2022,PUBLIC TRANSPORT & PARKING,SOUTH&LONDON,CORPORATE TRAVEL MANAGEMENTLIMITED,PINV1233,50
BEIS,ACAS,30/11/2022,PUBLIC TRANSPORT & PARKING,SOUTH&LONDON,CORPORATE TRAVEL MANAGEMENTLIMITED,PINV1233,114.9
BEIS,ACAS,30/11/2022,PUBLIC TRANSPORT & PARKING,STRATEGY,CORPORATE TRAVEL MANAGEMENTLIMITED,PINV1233,111.5
BEIS,ACAS,30/11/2022,PUBLIC TRANSPORT & PARKING,DDAT,CORPORATE TRAVEL MANAGEMENTLIMITED,PINV1233,53.5
BEIS,ACAS,30/11/2022,PUBLIC TRANSPORT & PARKING,WALES&MID,CORPORATE TRAVEL MANAGEMENTLIMITED,PINV1233,190.3
BEIS,ACAS,30/11/2022,HOTEL EXPENSES,SOUTH&LONDON,CORPORATE TRAVEL MANAGEMENTLIMITED,PINV1233,89.5
BEIS,ACAS,01/12/2022,EXTERNAL LEARNING,ODHR,ESSENTIALSKILZ,PINV1234,1693.44
BEIS,ACAS,01/12/2022,EXTERNAL LEARNING,ODHR,ESSENTIALSKILZ,PINV1234,725.76
BEIS,ACAS,18/11/2022,SERVICE CHARGES,FEP,GOVERNMENT PROPERTY AGENCY,PINV1235,253.38
BEIS,ACAS,18/11/2022,MAINTENANCE (TFM2),FEP,GOVERNMENT PROPERTY AGENCY,PINV1235,1937.6
BEIS,ACAS,18/11/2022,RATES,FEP,GOVERNMENT PROPERTY AGENCY,PINV1235,1332.79
BEIS,ACAS,18/11/2022,PROFESSIONAL FEES,FEP,GOVERNMENT PROPERTY AGENCY,PINV1235,2545.79
BEIS,ACAS,18/11/2022,Lease Liability,FEP,GOVERNMENT PROPERTY AGENCY,PINV1235,4427
BEIS,ACAS,28/11/2022,Lease Liability,FEP,STUDENT LOANS COMPANY LTD,PINV1236,41400
BEIS,ACAS,18/11/2022,PROFESSIONAL FEES,FEP,GOVERNMENT PROPERTY AGENCY,PINV1237,4353
BEIS,ACAS,18/11/2022,SERVICE CHARGES,FEP,GOVERNMENT PROPERTY AGENCY,PINV1237,15483.75
BEIS,ACAS,18/11/2022,RATES,FEP,GOVERNMENT PROPERTY AGENCY,PINV1237,2875
BEIS,ACAS,18/11/2022,Lease Liability,FEP,GOVERNMENT PROPERTY AGENCY,PINV1237,9634.5
BEIS,ACAS,18/11/2022,PROFESSIONAL FEES,FEP,GOVERNMENT PROPERTY AGENCY,PINV1238,5268.64
BEIS,ACAS,18/11/2022,SERVICE CHARGES,FEP,GOVERNMENT PROPERTY AGENCY,PINV1238,2634.5
BEIS,ACAS,18/11/2022,FACILITIES MANAGEMENT,FEP,GOVERNMENT PROPERTY AGENCY,PINV1238,9649.2
BEIS,ACAS,18/11/2022,RATES,FEP,GOVERNMENT PROPERTY AGENCY,PINV1238,7365.75
BEIS,ACAS,18/11/2022,Lease Liability,FEP,GOVERNMENT PROPERTY AGENCY,PINV1238,46431.23
BEIS,ACAS,18/11/2022,PROFESSIONAL FEES,FEP,GOVERNMENT PROPERTY AGENCY,PINV1239,4353
BEIS,ACAS,18/11/2022,SERVICE CHARGES,FEP,GOVERNMENT PROPERTY AGENCY,PINV1239,2793
BEIS,ACAS,18/11/2022,RATES,FEP,GOVERNMENT PROPERTY AGENCY,PINV1239,7630.54
BEIS,ACAS,18/11/2022,Lease Liability,FEP,GOVERNMENT PROPERTY AGENCY,PINV1239,11012.75
BEIS,ACAS,18/11/2022,PROFESSIONAL FEES,FEP,GOVERNMENT PROPERTY AGENCY,PINV1240,6754.25
BEIS,ACAS,18/11/2022,RATES,FEP,GOVERNMENT PROPERTY AGENCY,PINV1240,10327.25
BEIS,ACAS,18/11/2022,Lease Liability,FEP,GOVERNMENT PROPERTY AGENCY,PINV1240,33099
BEIS,ACAS,18/11/2022,SERVICE CHARGES,FEP,GOVERNMENT PROPERTY AGENCY,PINV1240,10518.5
BEIS,ACAS,18/11/2022,FACILITIES MANAGEMENT,FEP,GOVERNMENT PROPERTY AGENCY,PINV1240,29302.5
BEIS,ACAS,18/11/2022,PROFESSIONAL FEES,FEP,GOVERNMENT PROPERTY AGENCY,PINV1241,8469.42
BEIS,ACAS,18/11/2022,SERVICE CHARGES,FEP,GOVERNMENT PROPERTY AGENCY,PINV1241,31058.04
BEIS,ACAS,18/11/2022,FACILITIES MANAGEMENT,FEP,GOVERNMENT PROPERTY AGENCY,PINV1241,41995.18
BEIS,ACAS,18/11/2022,RATES,FEP,GOVERNMENT PROPERTY AGENCY,PINV1241,29056
BEIS,ACAS,18/11/2022,Lease Liability,FEP,GOVERNMENT PROPERTY AGENCY,PINV1241,93338.33
BEIS,ACAS,18/11/2022,PROFESSIONAL FEES,FEP,GOVERNMENT PROPERTY AGENCY,PINV1242,3866.56
BEIS,ACAS,18/11/2022,SERVICE CHARGES,FEP,GOVERNMENT PROPERTY AGENCY,PINV1242,4149.41
BEIS,ACAS,18/11/2022,FACILITIES MANAGEMENT,FEP,GOVERNMENT PROPERTY AGENCY,PINV1242,15871.84
BEIS,ACAS,18/11/2022,FACILITIES MANAGEMENT,FEP,GOVERNMENT PROPERTY AGENCY,PINV1242,2091
BEIS,ACAS,18/11/2022,RATES,FEP,GOVERNMENT PROPERTY AGENCY,PINV1242,7982.25
BEIS,ACAS,18/11/2022,Lease Liability,FEP,GOVERNMENT PROPERTY AGENCY,PINV1242,32387.63
BEIS,ACAS,18/11/2022,PROFESSIONAL FEES,FEP,GOVERNMENT PROPERTY AGENCY,PINV1243,4353
BEIS,ACAS,18/11/2022,SERVICE CHARGES,FEP,GOVERNMENT PROPERTY AGENCY,PINV1243,12240.15
BEIS,ACAS,18/11/2022,RATES,FEP,GOVERNMENT PROPERTY AGENCY,PINV1243,8455
BEIS,ACAS,18/11/2022,Lease Liability,FEP,GOVERNMENT PROPERTY AGENCY,PINV1243,19519.8
BEIS,ACAS,08/12/2022,LEARNING RESOURCE MATERIALS,ODHR,ALEXANDER MANN SOLUTIONS LTD,PINV1244,2268.22
BEIS,ACAS,08/12/2022,LEARNING RESOURCE MATERIALS,ODHR,ALEXANDER MANN SOLUTIONS LTD,PINV1245,3276.29
BEIS,ACAS,18/11/2022,Lease Liability,FEP,GOVERNMENT PROPERTY AGENCY,PINV1246,5230.99
BEIS,ACAS,18/11/2022,Lease Liability,FEP,GOVERNMENT PROPERTY AGENCY,PINV1246,67575.44
BEIS,ACAS,18/11/2022,Lease Liability,FEP,GOVERNMENT PROPERTY AGENCY,PINV1246,39687.16
BEIS,ACAS,18/11/2022,RATES,FEP,GOVERNMENT PROPERTY AGENCY,PINV1246,2358.39
BEIS,ACAS,18/11/2022,RATES,FEP,GOVERNMENT PROPERTY AGENCY,PINV1246,30459.94
BEIS,ACAS,18/11/2022,RATES,FEP,GOVERNMENT PROPERTY AGENCY,PINV1246,17889.17
BEIS,ACAS,18/11/2022,SERVICE CHARGES,FEP,GOVERNMENT PROPERTY AGENCY,PINV1246,2791.06
BEIS,ACAS,18/11/2022,SERVICE CHARGES,FEP,GOVERNMENT PROPERTY AGENCY,PINV1246,57241.44
BEIS,ACAS,18/11/2022,FACILITIES MANAGEMENT,FEP,GOVERNMENT PROPERTY AGENCY,PINV1246,19.21
BEIS,ACAS,18/11/2022,FACILITIES MANAGEMENT,FEP,GOVERNMENT PROPERTY AGENCY,PINV1246,406.19
BEIS,ACAS,18/11/2022,PROFESSIONAL FEES,FEP,GOVERNMENT PROPERTY AGENCY,PINV1246,301.76
BEIS,ACAS,18/11/2022,PROFESSIONAL FEES,FEP,GOVERNMENT PROPERTY AGENCY,PINV1246,6194.7
BEIS,ACAS,18/11/2022,SERVICE CHARGES,FEP,GOVERNMENT PROPERTY AGENCY,PINV1246,-561.13
BEIS,ACAS,18/11/2022,SERVICE CHARGES,FEP,GOVERNMENT PROPERTY AGENCY,PINV1246,-11505.92
BEIS,ACAS,18/11/2022,PROFESSIONAL FEES,FEP,GOVERNMENT PROPERTY AGENCY,PINV1247,4353
BEIS,ACAS,18/11/2022,RATES,FEP,GOVERNMENT PROPERTY AGENCY,PINV1247,6534.03
BEIS,ACAS,18/11/2022,Lease Liability,FEP,GOVERNMENT PROPERTY AGENCY,PINV1247,32957.4
BEIS,ACAS,17/11/2022,RATES,FEP,GOVERNMENT PROPERTY AGENCY,PINV1248,2178.01
BEIS,ACAS,17/11/2022,Lease Liability,FEP,GOVERNMENT PROPERTY AGENCY,PINV1248,10985.8
BEIS,ACAS,08/12/2022,LEARNING RESOURCE MATERIALS,ODHR,ALEXANDER MANN SOLUTIONS LTD,PINV1249,4630.93
BEIS,ACAS,08/12/2022,AGENCY STAFF,NORTH&MID,ALEXANDER MANN SOLUTIONS LTD,PINV1250,638.03
BEIS,ACAS,08/12/2022,AGENCY STAFF,WALES&MID,ALEXANDER MANN SOLUTIONS LTD,PINV1251,310.39
BEIS,ACAS,09/12/2022,VENUE HIRE (REC VAT),SOUTH&LONDON,CALDER CONFERENCES LTD,PINV1252,324
BEIS,ACAS,28/11/2022,MEMBERSHIP FEES,FEP,FINANCIAL REPORTING COUNCIL (FRC),PINV1254,402
BEIS,ACAS,02/12/2022,OCCUPATIONAL HEALTH SERVICE,ODHR,HEALTH MANAGEMENT LTD,PINV1256,630.3
BEIS,ACAS,20/09/2022,PROFESSIONAL FEES,CAC,INVESTORS IN PEOPLE,PINV1258,2803.8
BEIS,ACAS,14/12/2022,PROFESSIONAL FEES,STRATEGY,SNAP SURVEYS LTD,PINV1260,2070
BEIS,ACAS,13/12/2022,TRAINERS & GUEST SPEAKERS,SOUTH&LONDON,MIND,PINV1261,954
BEIS,ACAS,07/11/2022,OCCUPATIONAL HEALTH SERVICE,ODHR,HEALTH MANAGEMENT LTD,PINV1262,2362.5
BEIS,ACAS,07/12/2022,DILAPIDATION CHARGES,FEP,GOVERNMENT PROPERTY AGENCY,PINV1263,84625.69
BEIS,ACAS,15/12/2022,AGENCY STAFF,WALES&MID,ALEXANDER MANN SOLUTIONS LTD,PINV1264,310.39
BEIS,ACAS,16/12/2022,CHILDCARE VOUCHERS,FEP,EDENRED CHILDCARE VOUCHERS LTD,PINV1265,1974
BEIS,ACAS,30/05/2022,OCCUPATIONAL HEALTH SERVICE,FEP,POSTURITE LTD,PINV1266,458
BEIS,ACAS,14/12/2022,EXTERNAL CONF & SEMINARS,STRATEGY,THE WHITEHALL & INDUSTRY GROUP,PINV1267,300
BEIS,ACAS,14/12/2022,EXTERNAL CONF & SEMINARS,ODHR,THE WHITEHALL & INDUSTRY GROUP,PINV1267,300
BEIS,ACAS,08/12/2022,STAFF RECRUITMENT COSTS,DELIVERY,CAROL MARTYN LTD,PINV1268,375
BEIS,ACAS,09/12/2022,MOBILE PHONES,DDAT,TELEFONICA UK LTD (O2),PINV1269,5161.74
BEIS,ACAS,09/12/2022,MOBILE PHONES,DDAT,TELEFONICA UK LTD (O2),PINV1269,573.53
BEIS,ACAS,09/12/2022,MOBILE PHONES,DDAT,TELEFONICA UK LTD (O2),PINV1269,5.4
BEIS,ACAS,09/12/2022,MOBILE PHONES,DDAT,TELEFONICA UK LTD (O2),PINV1269,0.6
BEIS,ACAS,05/12/2022,PROFESSIONAL FEES,DDAT,W3 PARTNERSHIP LTD,PINV1270,2115.87
BEIS,ACAS,15/12/2022,AGENCY STAFF,NORTH&MID,ALEXANDER MANN SOLUTIONS LTD,PINV1271,638.03
BEIS,ACAS,15/12/2022,PROFESSIONAL FEES,DDAT,PHOENIX SOFTWARE LTD,PINV1272,1353.31
BEIS,ACAS,21/12/2022,AGENCY STAFF,WALES&MID,ALEXANDER MANN SOLUTIONS LTD,PINV1274,310.39
BEIS,ACAS,21/12/2022,AGENCY STAFF,NORTH&MID,ALEXANDER MANN SOLUTIONS LTD,PINV1276,638.03
BEIS,ACAS,18/12/2022,GOVT SOLICITORS FEES,ODHR,GOVERNMENT LEGAL DEPARTMENT,PINV1278,16228.51
BEIS,ACAS,01/12/2022,PERSONAL EXPENSE,NORTH&MID,NAME / DESCRIPTION WITHHELD,EXPS1279,255.6
BEIS,ACAS,01/12/2022,PERSONAL EXPENSE,NORTH&MID,NAME / DESCRIPTION WITHHELD,EXPS1279,8.9
BEIS,ACAS,23/12/2022,SOFTWARE & LICENCES,DELIVERY,ZOOM VIDEO COMMUNICATIONS INC,PINV1280,110.31
BEIS,ACAS,23/12/2022,SOFTWARE & LICENCES,DELIVERY,ZOOM VIDEO COMMUNICATIONS INC,PINV1280,124.11
BEIS,ACAS,23/12/2022,SOFTWARE & LICENCES,ODHR,ZOOM VIDEO COMMUNICATIONS INC,PINV1280,13.79
BEIS,ACAS,23/12/2022,SOFTWARE & LICENCES,DELIVERY,ZOOM VIDEO COMMUNICATIONS INC,PINV1280,137.9
BEIS,ACAS,23/12/2022,SOFTWARE & LICENCES,DELIVERY,ZOOM VIDEO COMMUNICATIONS INC,PINV1280,13.79
BEIS,ACAS,23/12/2022,SOFTWARE & LICENCES,SCOTLAND,ZOOM VIDEO COMMUNICATIONS INC,PINV1280,137.9
BEIS,ACAS,23/12/2022,SOFTWARE & LICENCES,NORTH&MID,ZOOM VIDEO COMMUNICATIONS INC,PINV1280,41.37
BEIS,ACAS,23/12/2022,SOFTWARE & LICENCES,NORTH&MID,ZOOM VIDEO COMMUNICATIONS INC,PINV1280,151.69
BEIS,ACAS,23/12/2022,SOFTWARE & LICENCES,NORTH&MID,ZOOM VIDEO COMMUNICATIONS INC,PINV1280,110.31
BEIS,ACAS,23/12/2022,SOFTWARE & LICENCES,NORTH&MID,ZOOM VIDEO COMMUNICATIONS INC,PINV1280,124.11
BEIS,ACAS,23/12/2022,SOFTWARE & LICENCES,WALES&MID,ZOOM VIDEO COMMUNICATIONS INC,PINV1280,179.27
BEIS,ACAS,23/12/2022,SOFTWARE & LICENCES,WALES&MID,ZOOM VIDEO COMMUNICATIONS INC,PINV1280,96.53
BEIS,ACAS,23/12/2022,SOFTWARE & LICENCES,SOUTH&LONDON,ZOOM VIDEO COMMUNICATIONS INC,PINV1280,96.53
BEIS,ACAS,23/12/2022,SOFTWARE & LICENCES,SOUTH&LONDON,ZOOM VIDEO COMMUNICATIONS INC,PINV1280,137.9
BEIS,ACAS,23/12/2022,SOFTWARE & LICENCES,SOUTH&LONDON,ZOOM VIDEO COMMUNICATIONS INC,PINV1280,110.31
BEIS,ACAS,23/12/2022,SOFTWARE & LICENCES,SOUTH&LONDON,ZOOM VIDEO COMMUNICATIONS INC,PINV1280,82.74
BEIS,ACAS,23/12/2022,SOFTWARE & LICENCES,NORTH&MID,ZOOM VIDEO COMMUNICATIONS INC,PINV1280,13.79
BEIS,ACAS,25/12/2022,HIRE CAR COSTS,SOUTH&LONDON,ENTERPRISE RENT-A-CAR,PINV1281,183.67
BEIS,ACAS,25/12/2022,HIRE CAR COSTS,NORTH&MID,ENTERPRISE RENT-A-CAR,PINV1281,150.84
BEIS,ACAS,25/12/2022,HIRE CAR COSTS,SOUTH&LONDON,ENTERPRISE RENT-A-CAR,PINV1281,67.24
BEIS,ACAS,25/12/2022,HIRE CAR COSTS,SOUTH&LONDON,ENTERPRISE RENT-A-CAR,PINV1281,255.14
BEIS,ACAS,25/12/2022,HIRE CAR PETROL,SOUTH&LONDON,ENTERPRISE RENT-A-CAR,PINV1281,116.72
BEIS,ACAS,25/12/2022,HIRE CAR COSTS,DDAT,ENTERPRISE RENT-A-CAR,PINV1281,153.67
BEIS,ACAS,25/12/2022,HIRE CAR COSTS,SOUTH&LONDON,ENTERPRISE RENT-A-CAR,PINV1281,152.42
BEIS,ACAS,25/12/2022,HIRE CAR COSTS,SCOTLAND,ENTERPRISE RENT-A-CAR,PINV1281,127.3
BEIS,ACAS,25/12/2022,HIRE CAR PETROL,SCOTLAND,ENTERPRISE RENT-A-CAR,PINV1281,58.92
BEIS,ACAS,23/12/2022,COURIERS,DDAT,ACS SYSTEMS UK LTD,PINV1282,252
BEIS,ACAS,01/12/2022,MAINTENANCE (TFM2),FEP,GOVERNMENT PROPERTY AGENCY,PINV1283,518.08
BEIS,ACAS,23/12/2022,MOBILE PHONES,DDAT,TELEFONICA UK LTD (O2),PINV1284,419.84
BEIS,ACAS,23/12/2022,MOBILE PHONES,DDAT,TELEFONICA UK LTD (O2),PINV1284,46.66
BEIS,ACAS,18/12/2022,GOVT SOLICITORS FEES,DELIVERY,GOVERNMENT LEGAL DEPARTMENT,PINV1286,721.08
BEIS,ACAS,18/12/2022,GOVT SOLICITORS FEES,DELIVERY,GOVERNMENT LEGAL DEPARTMENT,PINV1286,76.8
BEIS,ACAS,01/12/2022,PERSONAL EXPENSE,SOUTH&LONDON,NAME / DESCRIPTION WITHHELD,EXPS1293,279
BEIS,ACAS,01/12/2022,PERSONAL EXPENSE,SOUTH&LONDON,NAME / DESCRIPTION WITHHELD,EXPS1293,143.1
BEIS,ACAS,01/12/2022,PERSONAL EXPENSE,SOUTH&LONDON,NAME / DESCRIPTION WITHHELD,EXPS1293,181.8
BEIS,ACAS,01/12/2022,PERSONAL EXPENSE,SOUTH&LONDON,NAME / DESCRIPTION WITHHELD,EXPS1293,36.9
BEIS,ACAS,01/12/2022,PERSONAL EXPENSE,SOUTH&LONDON,NAME / DESCRIPTION WITHHELD,EXPS1293,35
BEIS,ACAS,01/12/2022,PERSONAL EXPENSE,SOUTH&LONDON,NAME / DESCRIPTION WITHHELD,EXPS1293,70
BEIS,ACAS,01/12/2022,PERSONAL EXPENSE,SOUTH&LONDON,NAME / DESCRIPTION WITHHELD,EXPS1293,35
BEIS,ACAS,01/12/2022,PERSONAL EXPENSE,SOUTH&LONDON,NAME / DESCRIPTION WITHHELD,EXPS1293,25
BEIS,ACAS,01/12/2022,PERSONAL EXPENSE,SOUTH&LONDON,NAME / DESCRIPTION WITHHELD,EXPS1293,25
BEIS,ACAS,01/12/2022,PERSONAL EXPENSE,SOUTH&LONDON,NAME / DESCRIPTION WITHHELD,EXPS1293,25
BEIS,ACAS,01/12/2022,PERSONAL EXPENSE,SOUTH&LONDON,NAME / DESCRIPTION WITHHELD,EXPS1293,5
BEIS,ACAS,01/12/2022,PERSONAL EXPENSE,SOUTH&LONDON,NAME / DESCRIPTION WITHHELD,EXPS1293,10
BEIS,ACAS,01/12/2022,PERSONAL EXPENSE,SOUTH&LONDON,NAME / DESCRIPTION WITHHELD,EXPS1293,10
BEIS,ACAS,01/12/2022,PERSONAL EXPENSE,SOUTH&LONDON,NAME / DESCRIPTION WITHHELD,EXPS1293,10
BEIS,ACAS,02/12/2022,PERSONAL EXPENSE,SCOTLAND,NAME / DESCRIPTION WITHHELD,EXPS1294,289.8
BEIS,ACAS,02/12/2022,PERSONAL EXPENSE,SCOTLAND,NAME / DESCRIPTION WITHHELD,EXPS1294,20
BEIS,ACAS,02/12/2022,PERSONAL EXPENSE,SCOTLAND,NAME / DESCRIPTION WITHHELD,EXPS1294,140
BEIS,ACAS,02/12/2022,PERSONAL EXPENSE,SCOTLAND,NAME / DESCRIPTION WITHHELD,EXPS1294,20
BEIS,ACAS,05/12/2022,PERSONAL EXPENSE,SOUTH&LONDON,NAME / DESCRIPTION WITHHELD,EXPS1302,573.96
BEIS,ACAS,05/12/2022,PERSONAL EXPENSE,DELIVERY,NAME / DESCRIPTION WITHHELD,EXPS1305,126.2
BEIS,ACAS,05/12/2022,PERSONAL EXPENSE,DELIVERY,NAME / DESCRIPTION WITHHELD,EXPS1305,77.5
BEIS,ACAS,05/12/2022,PERSONAL EXPENSE,DELIVERY,NAME / DESCRIPTION WITHHELD,EXPS1305,77.4
BEIS,ACAS,05/12/2022,PERSONAL EXPENSE,DELIVERY,NAME / DESCRIPTION WITHHELD,EXPS1305,70
BEIS,ACAS,05/12/2022,PERSONAL EXPENSE,DELIVERY,NAME / DESCRIPTION WITHHELD,EXPS1305,5
BEIS,ACAS,05/12/2022,PERSONAL EXPENSE,DELIVERY,NAME / DESCRIPTION WITHHELD,EXPS1305,10
BEIS,ACAS,05/12/2022,PERSONAL EXPENSE,DELIVERY,NAME / DESCRIPTION WITHHELD,EXPS1305,25
BEIS,ACAS,05/12/2022,PERSONAL EXPENSE,NORTH&MID,NAME / DESCRIPTION WITHHELD,EXPS1308,180
BEIS,ACAS,05/12/2022,PERSONAL EXPENSE,NORTH&MID,NAME / DESCRIPTION WITHHELD,EXPS1308,70
BEIS,ACAS,05/12/2022,PERSONAL EXPENSE,NORTH&MID,NAME / DESCRIPTION WITHHELD,EXPS1308,10
BEIS,ACAS,06/12/2022,PERSONAL EXPENSE,SOUTH&LONDON,NAME / DESCRIPTION WITHHELD,EXPS1309,206.55
BEIS,ACAS,06/12/2022,PERSONAL EXPENSE,SOUTH&LONDON,NAME / DESCRIPTION WITHHELD,EXPS1309,12.6
BEIS,ACAS,06/12/2022,PERSONAL EXPENSE,SOUTH&LONDON,NAME / DESCRIPTION WITHHELD,EXPS1309,105
BEIS,ACAS,06/12/2022,PERSONAL EXPENSE,SOUTH&LONDON,NAME / DESCRIPTION WITHHELD,EXPS1309,15
BEIS,ACAS,06/12/2022,PERSONAL EXPENSE,SOUTH&LONDON,NAME / DESCRIPTION WITHHELD,EXPS1309,10
BEIS,ACAS,06/12/2022,PERSONAL EXPENSE,SOUTH&LONDON,NAME / DESCRIPTION WITHHELD,EXPS1309,40
BEIS,ACAS,06/12/2022,PERSONAL EXPENSE,SOUTH&LONDON,NAME / DESCRIPTION WITHHELD,EXPS1309,6
BEIS,ACAS,06/12/2022,PERSONAL EXPENSE,SOUTH&LONDON,NAME / DESCRIPTION WITHHELD,EXPS1309,4.25
BEIS,ACAS,07/12/2022,PERSONAL EXPENSE,SOUTH&LONDON,NAME / DESCRIPTION WITHHELD,EXPS1316,260.1
BEIS,ACAS,07/12/2022,PERSONAL EXPENSE,SOUTH&LONDON,NAME / DESCRIPTION WITHHELD,EXPS1316,35
BEIS,ACAS,07/12/2022,PERSONAL EXPENSE,SOUTH&LONDON,NAME / DESCRIPTION WITHHELD,EXPS1316,5
BEIS,ACAS,07/12/2022,PERSONAL EXPENSE,SOUTH&LONDON,NAME / DESCRIPTION WITHHELD,EXPS1316,20
BEIS,ACAS,07/12/2022,PERSONAL EXPENSE,SOUTH&LONDON,NAME / DESCRIPTION WITHHELD,EXPS1316,25
BEIS,ACAS,07/12/2022,PERSONAL EXPENSE,SOUTH&LONDON,NAME / DESCRIPTION WITHHELD,EXPS1316,5
BEIS,ACAS,08/12/2022,PERSONAL EXPENSE,SOUTH&LONDON,NAME / DESCRIPTION WITHHELD,EXPS1321,117.9
BEIS,ACAS,08/12/2022,PERSONAL EXPENSE,SOUTH&LONDON,NAME / DESCRIPTION WITHHELD,EXPS1321,63
BEIS,ACAS,08/12/2022,PERSONAL EXPENSE,SOUTH&LONDON,NAME / DESCRIPTION WITHHELD,EXPS1321,7
BEIS,ACAS,08/12/2022,PERSONAL EXPENSE,SOUTH&LONDON,NAME / DESCRIPTION WITHHELD,EXPS1321,2.8
BEIS,ACAS,08/12/2022,PERSONAL EXPENSE,SOUTH&LONDON,NAME / DESCRIPTION WITHHELD,EXPS1321,5
BEIS,ACAS,08/12/2022,PERSONAL EXPENSE,SOUTH&LONDON,NAME / DESCRIPTION WITHHELD,EXPS1321,5
BEIS,ACAS,08/12/2022,PERSONAL EXPENSE,SOUTH&LONDON,NAME / DESCRIPTION WITHHELD,EXPS1321,35
BEIS,ACAS,08/12/2022,PERSONAL EXPENSE,SOUTH&LONDON,NAME / DESCRIPTION WITHHELD,EXPS1321,10
BEIS,ACAS,08/12/2022,PERSONAL EXPENSE,SOUTH&LONDON,NAME / DESCRIPTION WITHHELD,EXPS1321,6
BEIS,ACAS,09/12/2022,PERSONAL EXPENSE,STRATEGY,NAME / DESCRIPTION WITHHELD,EXPS1328,43.3
BEIS,ACAS,09/12/2022,PERSONAL EXPENSE,STRATEGY,NAME / DESCRIPTION WITHHELD,EXPS1328,93
BEIS,ACAS,09/12/2022,PERSONAL EXPENSE,STRATEGY,NAME / DESCRIPTION WITHHELD,EXPS1328,32.8
BEIS,ACAS,09/12/2022,PERSONAL EXPENSE,STRATEGY,NAME / DESCRIPTION WITHHELD,EXPS1328,105
BEIS,ACAS,09/12/2022,PERSONAL EXPENSE,STRATEGY,NAME / DESCRIPTION WITHHELD,EXPS1328,15
BEIS,ACAS,09/12/2022,PERSONAL EXPENSE,STRATEGY,NAME / DESCRIPTION WITHHELD,EXPS1328,30
BEIS,ACAS,09/12/2022,PERSONAL EXPENSE,STRATEGY,NAME / DESCRIPTION WITHHELD,EXPS1328,10
BEIS,ACAS,09/12/2022,PERSONAL EXPENSE,STRATEGY,NAME / DESCRIPTION WITHHELD,EXPS1328,10
BEIS,ACAS,12/12/2022,PERSONAL EXPENSE,WALES&MID,NAME / DESCRIPTION WITHHELD,EXPS1335,118.8
BEIS,ACAS,12/12/2022,PERSONAL EXPENSE,WALES&MID,NAME / DESCRIPTION WITHHELD,EXPS1335,70
BEIS,ACAS,12/12/2022,PERSONAL EXPENSE,WALES&MID,NAME / DESCRIPTION WITHHELD,EXPS1335,15
BEIS,ACAS,12/12/2022,PERSONAL EXPENSE,WALES&MID,NAME / DESCRIPTION WITHHELD,EXPS1335,30
BEIS,ACAS,12/12/2022,PERSONAL EXPENSE,WALES&MID,NAME / DESCRIPTION WITHHELD,EXPS1335,10
BEIS,ACAS,12/12/2022,PERSONAL EXPENSE,WALES&MID,NAME / DESCRIPTION WITHHELD,EXPS1335,105
BEIS,ACAS,12/12/2022,PERSONAL EXPENSE,FEP,NAME / DESCRIPTION WITHHELD,EXPS1337,415
BEIS,ACAS,12/12/2022,PERSONAL EXPENSE,WALES&MID,NAME / DESCRIPTION WITHHELD,EXPS1338,120.6
BEIS,ACAS,12/12/2022,PERSONAL EXPENSE,WALES&MID,NAME / DESCRIPTION WITHHELD,EXPS1338,7.7
BEIS,ACAS,12/12/2022,PERSONAL EXPENSE,WALES&MID,NAME / DESCRIPTION WITHHELD,EXPS1338,20
BEIS,ACAS,12/12/2022,PERSONAL EXPENSE,WALES&MID,NAME / DESCRIPTION WITHHELD,EXPS1338,140
BEIS,ACAS,14/12/2022,PERSONAL EXPENSE,WALES&MID,NAME / DESCRIPTION WITHHELD,EXPS1351,249.3
BEIS,ACAS,14/12/2022,PERSONAL EXPENSE,WALES&MID,NAME / DESCRIPTION WITHHELD,EXPS1351,30
BEIS,ACAS,14/12/2022,PERSONAL EXPENSE,WALES&MID,NAME / DESCRIPTION WITHHELD,EXPS1351,40
BEIS,ACAS,14/12/2022,PERSONAL EXPENSE,WALES&MID,NAME / DESCRIPTION WITHHELD,EXPS1351,10
BEIS,ACAS,14/12/2022,PERSONAL EXPENSE,SOUTH&LONDON,NAME / DESCRIPTION WITHHELD,EXPS1355,153.45
BEIS,ACAS,14/12/2022,PERSONAL EXPENSE,SOUTH&LONDON,NAME / DESCRIPTION WITHHELD,EXPS1355,105.3
BEIS,ACAS,14/12/2022,PERSONAL EXPENSE,SOUTH&LONDON,NAME / DESCRIPTION WITHHELD,EXPS1355,14.8
BEIS,ACAS,14/12/2022,PERSONAL EXPENSE,SOUTH&LONDON,NAME / DESCRIPTION WITHHELD,EXPS1355,10
BEIS,ACAS,14/12/2022,PERSONAL EXPENSE,SOUTH&LONDON,NAME / DESCRIPTION WITHHELD,EXPS1355,15
BEIS,ACAS,14/12/2022,PERSONAL EXPENSE,SOUTH&LONDON,NAME / DESCRIPTION WITHHELD,EXPS1355,10
BEIS,ACAS,14/12/2022,PERSONAL EXPENSE,SOUTH&LONDON,NAME / DESCRIPTION WITHHELD,EXPS1355,10
BEIS,ACAS,13/12/2022,PERSONAL EXPENSE,WALES&MID,NAME / DESCRIPTION WITHHELD,EXPS1356,89.1
BEIS,ACAS,13/12/2022,PERSONAL EXPENSE,WALES&MID,NAME / DESCRIPTION WITHHELD,EXPS1356,45.9
BEIS,ACAS,13/12/2022,PERSONAL EXPENSE,WALES&MID,NAME / DESCRIPTION WITHHELD,EXPS1356,8.1
BEIS,ACAS,13/12/2022,PERSONAL EXPENSE,WALES&MID,NAME / DESCRIPTION WITHHELD,EXPS1356,35
BEIS,ACAS,13/12/2022,PERSONAL EXPENSE,WALES&MID,NAME / DESCRIPTION WITHHELD,EXPS1356,5
BEIS,ACAS,13/12/2022,PERSONAL EXPENSE,WALES&MID,NAME / DESCRIPTION WITHHELD,EXPS1356,20
BEIS,ACAS,13/12/2022,PERSONAL EXPENSE,WALES&MID,NAME / DESCRIPTION WITHHELD,EXPS1356,10
BEIS,ACAS,13/12/2022,PERSONAL EXPENSE,WALES&MID,NAME / DESCRIPTION WITHHELD,EXPS1356,25
BEIS,ACAS,13/12/2022,PERSONAL EXPENSE,WALES&MID,NAME / DESCRIPTION WITHHELD,EXPS1356,15
BEIS,ACAS,13/12/2022,PERSONAL EXPENSE,WALES&MID,NAME / DESCRIPTION WITHHELD,EXPS1356,10
BEIS,ACAS,13/12/2022,PERSONAL EXPENSE,WALES&MID,NAME / DESCRIPTION WITHHELD,EXPS1356,8
BEIS,ACAS,14/12/2022,PERSONAL EXPENSE,NORTH&MID,NAME / DESCRIPTION WITHHELD,EXPS1359,379.35
BEIS,ACAS,14/12/2022,PERSONAL EXPENSE,NORTH&MID,NAME / DESCRIPTION WITHHELD,EXPS1359,8.15
BEIS,ACAS,15/12/2022,PERSONAL EXPENSE,SCOTLAND,NAME / DESCRIPTION WITHHELD,EXPS1369,72.9
BEIS,ACAS,15/12/2022,PERSONAL EXPENSE,SCOTLAND,NAME / DESCRIPTION WITHHELD,EXPS1369,0.9
BEIS,ACAS,15/12/2022,PERSONAL EXPENSE,SCOTLAND,NAME / DESCRIPTION WITHHELD,EXPS1369,6.1
BEIS,ACAS,15/12/2022,PERSONAL EXPENSE,SCOTLAND,NAME / DESCRIPTION WITHHELD,EXPS1369,89.2
BEIS,ACAS,15/12/2022,PERSONAL EXPENSE,SCOTLAND,NAME / DESCRIPTION WITHHELD,EXPS1369,5
BEIS,ACAS,15/12/2022,PERSONAL EXPENSE,SCOTLAND,NAME / DESCRIPTION WITHHELD,EXPS1369,5
BEIS,ACAS,15/12/2022,PERSONAL EXPENSE,SCOTLAND,NAME / DESCRIPTION WITHHELD,EXPS1369,10
BEIS,ACAS,15/12/2022,PERSONAL EXPENSE,SCOTLAND,NAME / DESCRIPTION WITHHELD,EXPS1369,35
BEIS,ACAS,15/12/2022,PERSONAL EXPENSE,SCOTLAND,NAME / DESCRIPTION WITHHELD,EXPS1369,35
BEIS,ACAS,16/12/2022,PERSONAL EXPENSE,DELIVERY,NAME / DESCRIPTION WITHHELD,EXPS1381,28.2
BEIS,ACAS,16/12/2022,PERSONAL EXPENSE,DELIVERY,NAME / DESCRIPTION WITHHELD,EXPS1381,163.5
BEIS,ACAS,16/12/2022,PERSONAL EXPENSE,DELIVERY,NAME / DESCRIPTION WITHHELD,EXPS1381,35
BEIS,ACAS,16/12/2022,PERSONAL EXPENSE,DELIVERY,NAME / DESCRIPTION WITHHELD,EXPS1381,5
BEIS,ACAS,16/12/2022,PERSONAL EXPENSE,DELIVERY,NAME / DESCRIPTION WITHHELD,EXPS1381,25
BEIS,ACAS,16/12/2022,PERSONAL EXPENSE,NORTH&MID,NAME / DESCRIPTION WITHHELD,EXPS1390,363.15
BEIS,ACAS,16/12/2022,PERSONAL EXPENSE,NORTH&MID,NAME / DESCRIPTION WITHHELD,EXPS1390,7.65
BEIS,ACAS,16/12/2022,PERSONAL EXPENSE,NORTH&MID,NAME / DESCRIPTION WITHHELD,EXPS1390,6.9
BEIS,ACAS,16/12/2022,PERSONAL EXPENSE,NORTH&MID,NAME / DESCRIPTION WITHHELD,EXPS1390,4
BEIS,ACAS,16/12/2022,PERSONAL EXPENSE,NORTH&MID,NAME / DESCRIPTION WITHHELD,EXPS1390,10
BEIS,ACAS,16/12/2022,PERSONAL EXPENSE,NORTH&MID,NAME / DESCRIPTION WITHHELD,EXPS1390,70
BEIS,ACAS,16/12/2022,PERSONAL EXPENSE,NORTH&MID,NAME / DESCRIPTION WITHHELD,EXPS1390,35
BEIS,ACAS,16/12/2022,PERSONAL EXPENSE,NORTH&MID,NAME / DESCRIPTION WITHHELD,EXPS1390,5
BEIS,ACAS,20/12/2022,PERSONAL EXPENSE,SPPC,NAME / DESCRIPTION WITHHELD,EXPS1395,4.5
BEIS,ACAS,20/12/2022,PERSONAL EXPENSE,SPPC,NAME / DESCRIPTION WITHHELD,EXPS1395,22.5
BEIS,ACAS,20/12/2022,PERSONAL EXPENSE,SPPC,NAME / DESCRIPTION WITHHELD,EXPS1395,2.5
BEIS,ACAS,20/12/2022,PERSONAL EXPENSE,SPPC,NAME / DESCRIPTION WITHHELD,EXPS1395,29
BEIS,ACAS,20/12/2022,PERSONAL EXPENSE,SPPC,NAME / DESCRIPTION WITHHELD,EXPS1395,10
BEIS,ACAS,20/12/2022,PERSONAL EXPENSE,SPPC,NAME / DESCRIPTION WITHHELD,EXPS1395,70
BEIS,ACAS,20/12/2022,PERSONAL EXPENSE,SPPC,NAME / DESCRIPTION WITHHELD,EXPS1395,10
BEIS,ACAS,20/12/2022,PERSONAL EXPENSE,SPPC,NAME / DESCRIPTION WITHHELD,EXPS1395,8
BEIS,ACAS,20/12/2022,PERSONAL EXPENSE,SPPC,NAME / DESCRIPTION WITHHELD,EXPS1395,5
BEIS,ACAS,20/12/2022,PERSONAL EXPENSE,SPPC,NAME / DESCRIPTION WITHHELD,EXPS1395,35
BEIS,ACAS,20/12/2022,PERSONAL EXPENSE,SPPC,NAME / DESCRIPTION WITHHELD,EXPS1395,25
BEIS,ACAS,20/12/2022,PERSONAL EXPENSE,SPPC,NAME / DESCRIPTION WITHHELD,EXPS1395,8
BEIS,ACAS,20/12/2022,PERSONAL EXPENSE,SPPC,NAME / DESCRIPTION WITHHELD,EXPS1395,5
BEIS,ACAS,20/12/2022,PERSONAL EXPENSE,SPPC,NAME / DESCRIPTION WITHHELD,EXPS1395,35
BEIS,ACAS,20/12/2022,PERSONAL EXPENSE,SPPC,NAME / DESCRIPTION WITHHELD,EXPS1395,10
BEIS,ACAS,20/12/2022,PERSONAL EXPENSE,SPPC,NAME / DESCRIPTION WITHHELD,EXPS1395,4
BEIS,ACAS,20/12/2022,PERSONAL EXPENSE,SPPC,NAME / DESCRIPTION WITHHELD,EXPS1395,10
BEIS,ACAS,20/12/2022,PERSONAL EXPENSE,SOUTH&LONDON,NAME / DESCRIPTION WITHHELD,EXPS1397,255.6
BEIS,ACAS,20/12/2022,PERSONAL EXPENSE,SOUTH&LONDON,NAME / DESCRIPTION WITHHELD,EXPS1397,4.5
BEIS,ACAS,20/12/2022,PERSONAL EXPENSE,SOUTH&LONDON,NAME / DESCRIPTION WITHHELD,EXPS1397,5
BEIS,ACAS,20/12/2022,PERSONAL EXPENSE,SOUTH&LONDON,NAME / DESCRIPTION WITHHELD,EXPS1397,10
BEIS,ACAS,20/12/2022,PERSONAL EXPENSE,SOUTH&LONDON,NAME / DESCRIPTION WITHHELD,EXPS1397,35
BEIS,ACAS,20/12/2022,PERSONAL EXPENSE,SOUTH&LONDON,NAME / DESCRIPTION WITHHELD,EXPS1397,10
BEIS,ACAS,22/12/2022,PERSONAL EXPENSE,NORTH&MID,NAME / DESCRIPTION WITHHELD,EXPS1400,309.15
BEIS,ACAS,22/12/2022,PERSONAL EXPENSE,NORTH&MID,NAME / DESCRIPTION WITHHELD,EXPS1400,18.85
BEIS,ACAS,22/12/2022,PERSONAL EXPENSE,NORTH&MID,NAME / DESCRIPTION WITHHELD,EXPS1400,8
BEIS,ACAS,22/12/2022,PERSONAL EXPENSE,NORTH&MID,NAME / DESCRIPTION WITHHELD,EXPS1400,20
BEIS,ACAS,22/12/2022,PERSONAL EXPENSE,NORTH&MID,NAME / DESCRIPTION WITHHELD,EXPS1400,25
BEIS,ACAS,22/12/2022,PERSONAL EXPENSE,NORTH&MID,NAME / DESCRIPTION WITHHELD,EXPS1400,30
BEIS,ACAS,22/12/2022,PERSONAL EXPENSE,NORTH&MID,NAME / DESCRIPTION WITHHELD,EXPS1400,140
BEIS,ACAS,22/12/2022,PERSONAL EXPENSE,WALES&MID,NAME / DESCRIPTION WITHHELD,EXPS1402,353.7
BEIS,ACAS,22/12/2022,PERSONAL EXPENSE,WALES&MID,NAME / DESCRIPTION WITHHELD,EXPS1402,35
BEIS,ACAS,22/12/2022,PERSONAL EXPENSE,WALES&MID,NAME / DESCRIPTION WITHHELD,EXPS1402,5
BEIS,ACAS,22/12/2022,PERSONAL EXPENSE,WALES&MID,NAME / DESCRIPTION WITHHELD,EXPS1402,10
BEIS,ACAS,22/12/2022,PERSONAL EXPENSE,WALES&MID,NAME / DESCRIPTION WITHHELD,EXPS1402,20
BEIS,ACAS,22/12/2022,PERSONAL EXPENSE,WALES&MID,NAME / DESCRIPTION WITHHELD,EXPS1402,29.8
BEIS,ACAS,28/12/2022,PERSONAL EXPENSE,WALES&MID,NAME / DESCRIPTION WITHHELD,EXPS1411,139.5
BEIS,ACAS,28/12/2022,PERSONAL EXPENSE,WALES&MID,NAME / DESCRIPTION WITHHELD,EXPS1411,5.4
BEIS,ACAS,28/12/2022,PERSONAL EXPENSE,WALES&MID,NAME / DESCRIPTION WITHHELD,EXPS1411,8
BEIS,ACAS,28/12/2022,PERSONAL EXPENSE,WALES&MID,NAME / DESCRIPTION WITHHELD,EXPS1411,20
BEIS,ACAS,28/12/2022,PERSONAL EXPENSE,WALES&MID,NAME / DESCRIPTION WITHHELD,EXPS1411,10
BEIS,ACAS,28/12/2022,PERSONAL EXPENSE,WALES&MID,NAME / DESCRIPTION WITHHELD,EXPS1411,10
BEIS,ACAS,28/12/2022,PERSONAL EXPENSE,WALES&MID,NAME / DESCRIPTION WITHHELD,EXPS1411,10
BEIS,ACAS,28/12/2022,PERSONAL EXPENSE,WALES&MID,NAME / DESCRIPTION WITHHELD,EXPS1411,70
